Workbook

Sheet P_Total
A1: 1
A2: 1 | C2: Разшифровка на ведомствените и администрираните разходи по
A3: 1 | C3: бюджетни програми за 2026 година
A4: 1 | C4: на Комисия за регулиране на съобщенията
A5: 1
A6: 1
A7: 1
A8: 1 | C8: П О К А З А Т Е Л И | E8: Закон | F8: Уточнен | G8: Отчет | H8: Отчет | I8: Отчет | J8: Отчет
A9: 1 | F9: план | G9: към 31 март | H9: към 30 юни | I9: към 30 септември | J9: към 31 декември
A10: 1 | C10: (в евро) | E10: 2026 г. | F10: =$E$10 -> 2026 г. | G10: =$E$10 -> 2026 г. | H10: =$E$10 -> 2026 г. | I10: =$E$10 -> 2026 г. | J10: =$E$10 -> 2026 г.
A11: 1
A12: 1 | C12: A | E12: 1 | F12: =E12+1 -> 2 | G12: =F12+1 -> 3 | H12: =G12+1 -> 4 | I12: =H12+1 -> 5 | J12: =I12+1 -> 6
A13: 1
A14: 1 | C14: РАЗХОДИ - ВСИЧКО | D14: 02 | E14: =E16 -> 0 | F14: 0 | G14: 2009248 | H14: 5793612 | I14: 0 | J14: 0
A15: 1
A16: 1 | C16: Общо разходи | E16: =SUBTOTAL(9,E17:E71) -> 0 | F16: 0 | G16: 2009248 | H16: 5793612 | I16: 0 | J16: 0
A17: 1 | B17: 1. | C17: Общо ведомствени разходи | E17: =SUBTOTAL(9,E18:E36) -> 0 | F17: 0 | G17: 1959530 | H17: 5743894 | I17: 0 | J17: 0
A18: =IF(MAX(E18:J18)=0,IF(MIN(E18:J18)=0,3,2),2) -> 2 | C18: Персонал | E18: =SUBTOTAL(9,E19:E22) -> 0 | F18: 0 | G18: 1645601 | H18: 3476314 | I18: 0 | J18: 0
A19: 2 | C19: Заплати и възнаграждения за персонала, нает по трудови и служебни правоотношения | D19: 01-00 | E19: =SUM(B:E!E19) -> 0 | F19: =SUM(B:E!F19) -> 0 | G19: =SUM(B:E!G19) -> 1234341 | H19: =SUM(B:E!H19) -> 2652148 | I19: =SUM(B:E!I19) -> 0 | J19: =SUM(B:E!J19) -> 0
A20: 2 | C20: Други възнаграждения и плащания за персонала | D20: 02-00 | E20: =SUM(B:E!E20) -> 0 | F20: =SUM(B:E!F20) -> 0 | G20: =SUM(B:E!G20) -> 56299 | H20: =SUM(B:E!H20) -> 86622 | I20: =SUM(B:E!I20) -> 0 | J20: =SUM(B:E!J20) -> 0
A21: 2 | C21: Задължителни осигурителни вноски от работодатели | D21: 05-00 | E21: =SUM(B:E!E21) -> 0 | F21: =SUM(B:E!F21) -> 0 | G21: =SUM(B:E!G21) -> 354961 | H21: =SUM(B:E!H21) -> 737544 | I21: =SUM(B:E!I21) -> 0 | J21: =SUM(B:E!J21) -> 0
A22: 3 | C22: Вноски за доброволно осигуряване | D22: 08-00 | E22: =SUM(B:E!E22) -> 0 | F22: =SUM(B:E!F22) -> 0 | G22: =SUM(B:E!G22) -> 0 | H22: =SUM(B:E!H22) -> 0 | I22: =SUM(B:E!I22) -> 0 | J22: =SUM(B:E!J22) -> 0
A23: 2 | C23: Издръжка | E23: =SUBTOTAL(9,E24:E30) -> 0 | F23: 0 | G23: 309227 | H23: 716039 | I23: 0 | J23: 0
A24: 2 | C24: Издръжка | D24: 10-00 | E24: =SUM(B:E!E24) -> 0 | F24: =SUM(B:E!F24) -> 0 | G24: =SUM(B:E!G24) -> 307711 | H24: =SUM(B:E!H24) -> 684375 | I24: =SUM(B:E!I24) -> 0 | J24: =SUM(B:E!J24) -> 0
A25: =IF(MAX(E25:J25)=0,IF(MIN(E25:J25)=0,3,2),2) -> 2 | C25: Платени данъци, такси и административни санкции | D25: 19-00 | E25: =SUM(B:E!E25) -> 0 | F25: =SUM(B:E!F25) -> 0 | G25: =SUM(B:E!G25) -> 1516 | H25: =SUM(B:E!H25) -> 31664 | I25: =SUM(B:E!I25) -> 0 | J25: =SUM(B:E!J25) -> 0
A26: 3 | C26: Лихви | E26: =SUBTOTAL(9,E27:E28) -> 0 | F26: 0 | G26: 0 | H26: 0 | I26: 0 | J26: 0
A27: 3 | C27: Лихви по външни заеми | E27: =SUM(B:E!E27) -> 0 | F27: =SUM(B:E!F27) -> 0 | G27: =SUM(B:E!G27) -> 0 | H27: =SUM(B:E!H27) -> 0 | I27: =SUM(B:E!I27) -> 0 | J27: =SUM(B:E!J27) -> 0
A28: 3 | C28: Лихви по вътрешни заеми | E28: =SUM(B:E!E28) -> 0 | F28: =SUM(B:E!F28) -> 0 | G28: =SUM(B:E!G28) -> 0 | H28: =SUM(B:E!H28) -> 0 | I28: =SUM(B:E!I28) -> 0 | J28: =SUM(B:E!J28) -> 0
A29: =IF(MAX(E29:J29)=0,IF(MIN(E29:J29)=0,3,2),2) -> 3 | C29: Текущи трансфери, обезщетения и помощи за домакинствата | D29: 42-00 | E29: =SUM(B:E!E29) -> 0 | F29: =SUM(B:E!F29) -> 0 | G29: =SUM(B:E!G29) -> 0 | H29: =SUM(B:E!H29) -> 0 | I29: =SUM(B:E!I29) -> 0 | J29: =SUM(B:E!J29) -> 0
A30: 3 | C30: Разходи за членски внос и участие в нетърговски организации и дейности | D30: 46-00 | E30: =SUM(B:E!E30) -> 0 | F30: =SUM(B:E!F30) -> 0 | G30: =SUM(B:E!G30) -> 0 | H30: =SUM(B:E!H30) -> 0 | I30: =SUM(B:E!I30) -> 0 | J30: =SUM(B:E!J30) -> 0
A31: 2 | C31: Капиталови разходи | E31: =SUBTOTAL(9,E32:E36) -> 0 | F31: 0 | G31: 4702 | H31: 1551541 | I31: 0 | J31: 0
A32: 2 | C32: Основен ремонт на дълготрайни материални активи | D32: 51-00 | E32: =SUM(B:E!E32) -> 0 | F32: =SUM(B:E!F32) -> 0 | G32: =SUM(B:E!G32) -> 4702 | H32: =SUM(B:E!H32) -> 4702 | I32: =SUM(B:E!I32) -> 0 | J32: =SUM(B:E!J32) -> 0
A33: 2 | C33: Придобиване на дълготрайни материални активи | D33: 52-00 | E33: =SUM(B:E!E33) -> 0 | F33: =SUM(B:E!F33) -> 0 | G33: =SUM(B:E!G33) -> 0 | H33: =SUM(B:E!H33) -> 1546839 | I33: =SUM(B:E!I33) -> 0 | J33: =SUM(B:E!J33) -> 0
A34: 3 | C34: Придобиване на нематериални дълготрайни активи | D34: 53-00 | E34: =SUM(B:E!E34) -> 0 | F34: =SUM(B:E!F34) -> 0 | G34: =SUM(B:E!G34) -> 0 | H34: =SUM(B:E!H34) -> 0 | I34: =SUM(B:E!I34) -> 0 | J34: =SUM(B:E!J34) -> 0
A35: 3 | C35: Придобиване на земя | D35: 54-00 | E35: =SUM(B:E!E35) -> 0 | F35: =SUM(B:E!F35) -> 0 | G35: =SUM(B:E!G35) -> 0 | H35: =SUM(B:E!H35) -> 0 | I35: =SUM(B:E!I35) -> 0 | J35: =SUM(B:E!J35) -> 0
A36: 3 | C36: Капиталови трансфери | D36: 55-00 | E36: =SUM(B:E!E36) -> 0 | F36: =SUM(B:E!F36) -> 0 | G36: =SUM(B:E!G36) -> 0 | H36: =SUM(B:E!H36) -> 0 | I36: =SUM(B:E!I36) -> 0 | J36: =SUM(B:E!J36) -> 0
A37: 1 | B37: 2. | C37: Администрирани разходни параграфи по бюджета | E37: =SUBTOTAL(9,E38:E70) -> 0 | F37: 0 | G37: 49718 | H37: 49718 | I37: 0 | J37: 0
A38: =IF(MAX(E38:J38)=0,IF(MIN(E38:J38)=0,3,2),2) -> 2 | C38: Текущи разходи | E38: =SUBTOTAL(9,E39:E57) -> 0 | F38: 0 | G38: 49718 | H38: 49718 | I38: 0 | J38: 0
A39: 3 | C39: Персонал | E39: =SUBTOTAL(9,E40:E43) -> 0 | F39: 0 | G39: 0 | H39: 0 | I39: 0 | J39: 0
A40: =IF(MAX(E40:J40)=0,IF(MIN(E40:J40)=0,3,2),2) -> 3 | C40: Заплати и възнаграждения за персонала, нает по трудови и служебни правоотношения | D40: 01-00 | E40: =SUM(B:E!E40) -> 0 | F40: =SUM(B:E!F40) -> 0 | G40: =SUM(B:E!G40) -> 0 | H40: =SUM(B:E!H40) -> 0 | I40: =SUM(B:E!I40) -> 0 | J40: =SUM(B:E!J40) -> 0
A41: =IF(MAX(E41:J41)=0,IF(MIN(E41:J41)=0,3,2),2) -> 3 | C41: Други възнаграждения и плащания за персонала | D41: 02-00 | E41: =SUM(B:E!E41) -> 0 | F41: =SUM(B:E!F41) -> 0 | G41: =SUM(B:E!G41) -> 0 | H41: =SUM(B:E!H41) -> 0 | I41: =SUM(B:E!I41) -> 0 | J41: =SUM(B:E!J41) -> 0
A42: 3 | C42: Задължителни осигурителни вноски от работодатели | D42: 05-00 | E42: =SUM(B:E!E42) -> 0 | F42: =SUM(B:E!F42) -> 0 | G42: =SUM(B:E!G42) -> 0 | H42: =SUM(B:E!H42) -> 0 | I42: =SUM(B:E!I42) -> 0 | J42: =SUM(B:E!J42) -> 0
A43: 3 | C43: Вноски за доброволно осигуряване | D43: 08-00 | E43: =SUM(B:E!E43) -> 0 | F43: =SUM(B:E!F43) -> 0 | G43: =SUM(B:E!G43) -> 0 | H43: =SUM(B:E!H43) -> 0 | I43: =SUM(B:E!I43) -> 0 | J43: =SUM(B:E!J43) -> 0
A44: 3 | C44: Издръжка | D44: 10-00 | E44: =SUM(B:E!E44) -> 0 | F44: =SUM(B:E!F44) -> 0 | G44: =SUM(B:E!G44) -> 0 | H44: =SUM(B:E!H44) -> 0 | I44: =SUM(B:E!I44) -> 0 | J44: =SUM(B:E!J44) -> 0
A45: =IF(MAX(E45:J45)=0,IF(MIN(E45:J45)=0,3,2),2) -> 3 | C45: Платени данъци, такси и административни санкции | D45: 19-00 | E45: =SUM(B:E!E45) -> 0 | F45: =SUM(B:E!F45) -> 0 | G45: =SUM(B:E!G45) -> 0 | H45: =SUM(B:E!H45) -> 0 | I45: =SUM(B:E!I45) -> 0 | J45: =SUM(B:E!J45) -> 0
A46: 3 | C46: Лихви | E46: =SUBTOTAL(9,E47:E48) -> 0 | F46: 0 | G46: 0 | H46: 0 | I46: 0 | J46: 0
A47: 3 | C47: Лихви по външни заеми | E47: =SUM(B:E!E47) -> 0 | F47: =SUM(B:E!F47) -> 0 | G47: =SUM(B:E!G47) -> 0 | H47: =SUM(B:E!H47) -> 0 | I47: =SUM(B:E!I47) -> 0 | J47: =SUM(B:E!J47) -> 0
A48: 3 | C48: Лихви по вътрешни заеми | E48: =SUM(B:E!E48) -> 0 | F48: =SUM(B:E!F48) -> 0 | G48: =SUM(B:E!G48) -> 0 | H48: =SUM(B:E!H48) -> 0 | I48: =SUM(B:E!I48) -> 0 | J48: =SUM(B:E!J48) -> 0
A49: 3 | C49: Здравноосигурителни плащания | D49: 39-00 | E49: =SUM(B:E!E49) -> 0 | F49: =SUM(B:E!F49) -> 0 | G49: =SUM(B:E!G49) -> 0 | H49: =SUM(B:E!H49) -> 0 | I49: =SUM(B:E!I49) -> 0 | J49: =SUM(B:E!J49) -> 0
A50: 3 | C50: Стипендии | D50: 40-00 | E50: =SUM(B:E!E50) -> 0 | F50: =SUM(B:E!F50) -> 0 | G50: =SUM(B:E!G50) -> 0 | H50: =SUM(B:E!H50) -> 0 | I50: =SUM(B:E!I50) -> 0 | J50: =SUM(B:E!J50) -> 0
A51: 3 | C51: Пенсии | D51: 41-00 | E51: =SUM(B:E!E51) -> 0 | F51: =SUM(B:E!F51) -> 0 | G51: =SUM(B:E!G51) -> 0 | H51: =SUM(B:E!H51) -> 0 | I51: =SUM(B:E!I51) -> 0 | J51: =SUM(B:E!J51) -> 0
A52: 3 | C52: Текущи трансфери, обезщетения и помощи за домакинствата | D52: 42-00 | E52: =SUM(B:E!E52) -> 0 | F52: =SUM(B:E!F52) -> 0 | G52: =SUM(B:E!G52) -> 0 | H52: =SUM(B:E!H52) -> 0 | I52: =SUM(B:E!I52) -> 0 | J52: =SUM(B:E!J52) -> 0
A53: 3 | C53: Субсидии и други текущи трансфери за нефинансови предприятия | D53: 43-00 | E53: =SUM(B:E!E53) -> 0 | F53: =SUM(B:E!F53) -> 0 | G53: =SUM(B:E!G53) -> 0 | H53: =SUM(B:E!H53) -> 0 | I53: =SUM(B:E!I53) -> 0 | J53: =SUM(B:E!J53) -> 0
A54: 3 | C54: Субсидии и други текущи трансфери за осъществяване на болнична помощ | D54: 43-02 | E54: =SUM(B:E!E54) -> 0 | F54: =SUM(B:E!F54) -> 0 | G54: =SUM(B:E!G54) -> 0 | H54: =SUM(B:E!H54) -> 0 | I54: =SUM(B:E!I54) -> 0 | J54: =SUM(B:E!J54) -> 0
A55: =IF(MAX(E55:J55)=0,IF(MIN(E55:J55)=0,3,2),2) -> 3 | C55: Субсидии и други текущи трансфери за финансови институции | D55: 44-00 | E55: =SUM(B:E!E55) -> 0 | F55: =SUM(B:E!F55) -> 0 | G55: =SUM(B:E!G55) -> 0 | H55: =SUM(B:E!H55) -> 0 | I55: =SUM(B:E!I55) -> 0 | J55: =SUM(B:E!J55) -> 0
A56: 3 | C56: Субсидии и други текущи трансфери за юридически лица с нестопанска цел | D56: 45-00 | E56: =SUM(B:E!E56) -> 0 | F56: =SUM(B:E!F56) -> 0 | G56: =SUM(B:E!G56) -> 0 | H56: =SUM(B:E!H56) -> 0 | I56: =SUM(B:E!I56) -> 0 | J56: =SUM(B:E!J56) -> 0
A57: 2 | C57: Разходи за членски внос и участие в нетърговски организации и дейности | D57: 46-00 | E57: =SUM(B:E!E57) -> 0 | F57: =SUM(B:E!F57) -> 0 | G57: =SUM(B:E!G57) -> 49718 | H57: =SUM(B:E!H57) -> 49718 | I57: =SUM(B:E!I57) -> 0 | J57: =SUM(B:E!J57) -> 0
A58: 3 | C58: Предоставени текущи и капиталови трансфери за чужбина | D58: 49-00 | E58: =SUBTOTAL(9,E59:E60) -> 0 | F58: 0 | G58: 0 | H58: 0 | I58: 0 | J58: 0
A59: =IF(MAX(E59:J59)=0,IF(MIN(E59:J59)=0,3,2),2) -> 3 | C59: Текущи трансфери за чужбина | D59: 49-01 | E59: =SUM(B:E!E59) -> 0 | F59: =SUM(B:E!F59) -> 0 | G59: =SUM(B:E!G59) -> 0 | H59: =SUM(B:E!H59) -> 0 | I59: =SUM(B:E!I59) -> 0 | J59: =SUM(B:E!J59) -> 0
A60: =IF(MAX(E60:J60)=0,IF(MIN(E60:J60)=0,3,2),2) -> 3 | C60: Капиталови трансфери за чужбина | D60: 49-02 | E60: =SUM(B:E!E60) -> 0 | F60: =SUM(B:E!F60) -> 0 | G60: =SUM(B:E!G60) -> 0 | H60: =SUM(B:E!H60) -> 0 | I60: =SUM(B:E!I60) -> 0 | J60: =SUM(B:E!J60) -> 0
A61: 3 | C61: Капиталови разходи | E61: =SUBTOTAL(9,E62:E66) -> 0 | F61: 0 | G61: 0 | H61: 0 | I61: 0 | J61: 0
A62: 3 | C62: Основен ремонт на дълготрайни материални активи | D62: 51-00 | E62: =SUM(B:E!E62) -> 0 | F62: =SUM(B:E!F62) -> 0 | G62: =SUM(B:E!G62) -> 0 | H62: =SUM(B:E!H62) -> 0 | I62: =SUM(B:E!I62) -> 0 | J62: =SUM(B:E!J62) -> 0
A63: 3 | C63: Придобиване на дълготрайни материални активи | D63: 52-00 | E63: =SUM(B:E!E63) -> 0 | F63: =SUM(B:E!F63) -> 0 | G63: =SUM(B:E!G63) -> 0 | H63: =SUM(B:E!H63) -> 0 | I63: =SUM(B:E!I63) -> 0 | J63: =SUM(B:E!J63) -> 0
A64: 3 | C64: Придобиване на нематериални дълготрайни активи | D64: 53-00 | E64: =SUM(B:E!E64) -> 0 | F64: =SUM(B:E!F64) -> 0 | G64: =SUM(B:E!G64) -> 0 | H64: =SUM(B:E!H64) -> 0 | I64: =SUM(B:E!I64) -> 0 | J64: =SUM(B:E!J64) -> 0
A65: 3 | C65: Придобиване на земя | D65: 54-00 | E65: =SUM(B:E!E65) -> 0 | F65: =SUM(B:E!F65) -> 0 | G65: =SUM(B:E!G65) -> 0 | H65: =SUM(B:E!H65) -> 0 | I65: =SUM(B:E!I65) -> 0 | J65: =SUM(B:E!J65) -> 0
A66: 3 | C66: Капиталови трансфери | D66: 55-00 | E66: =SUM(B:E!E66) -> 0 | F66: =SUM(B:E!F66) -> 0 | G66: =SUM(B:E!G66) -> 0 | H66: =SUM(B:E!H66) -> 0 | I66: =SUM(B:E!I66) -> 0 | J66: =SUM(B:E!J66) -> 0
A67: 3 | C67: Прираст на държавния резерв и изкупуване на земеделска продукция | E67: =SUBTOTAL(9,E68:E70) -> 0 | F67: 0 | G67: 0 | H67: 0 | I67: 0 | J67: 0
A68: 3 | C68: Плащания за попълване на държавния резерв | D68: 57-01 | E68: =SUM(B:E!E68) -> 0 | F68: =SUM(B:E!F68) -> 0 | G68: =SUM(B:E!G68) -> 0 | H68: =SUM(B:E!H68) -> 0 | I68: =SUM(B:E!I68) -> 0 | J68: =SUM(B:E!J68) -> 0
A69: 3 | C69: Постъпления от продажба на държавния резерв (-) | D69: 40-71 | E69: =SUM(B:E!E69) -> 0 | F69: =SUM(B:E!F69) -> 0 | G69: =SUM(B:E!G69) -> 0 | H69: =SUM(B:E!H69) -> 0 | I69: =SUM(B:E!I69) -> 0 | J69: =SUM(B:E!J69) -> 0
A70: 3 | C70: Плащания за изкупуване на земеделска продукция | D70: 57-02 | E70: =SUM(B:E!E70) -> 0 | F70: =SUM(B:E!F70) -> 0 | G70: =SUM(B:E!G70) -> 0 | H70: =SUM(B:E!H70) -> 0 | I70: =SUM(B:E!I70) -> 0 | J70: =SUM(B:E!J70) -> 0
A71: 3 | B71: 3. | C71: Резерв за непредвидени и неотложни разходи | D71: 00-98 | E71: =SUM(B:E!E71) -> 0 | F71: =SUM(B:E!F71) -> 0 | G71: =SUM(B:E!G71) -> 0 | H71: =SUM(B:E!H71) -> 0 | I71: =SUM(B:E!I71) -> 0 | J71: =SUM(B:E!J71) -> 0
A72: 1
A73: 1 | C73: НАТУРАЛНИ ПОКАЗАТЕЛИ
A74: =IF(MAX(E74:J74)=0,IF(MIN(E74:J74)=0,3,2),2) -> 2 | C74: Щатни бройки - общо | E74: =E76+E82 -> 0 | F74: 0 | G74: 216 | H74: 218 | I74: 0 | J74: 0
A75: 2 | C75: Средногодишни щатни бройки - общо | E75: =E79+E83 -> 0 | F75: 0 | G75: 214 | H75: 217 | I75: 0 | J75: 0
A76: 2 | C76: Щатни бройки | E76: =SUM(E77:E78) -> 0 | F76: 0 | G76: 216 | H76: 218 | I76: 0 | J76: 0
A77: 2 | C77: по трудови правоотношения | E77: =SUM(B:E!E77) -> 0 | F77: =SUM(B:E!F77) -> 0 | G77: =SUM(B:E!G77) -> 20 | H77: =SUM(B:E!H77) -> 19 | I77: =SUM(B:E!I77) -> 0 | J77: =SUM(B:E!J77) -> 0
A78: 2 | C78: по служебни правоотношения | E78: =SUM(B:E!E78) -> 0 | F78: =SUM(B:E!F78) -> 0 | G78: =SUM(B:E!G78) -> 196 | H78: =SUM(B:E!H78) -> 199 | I78: =SUM(B:E!I78) -> 0 | J78: =SUM(B:E!J78) -> 0
A79: 2 | C79: Средногодишни щатни бройки | E79: =SUM(E80:E81) -> 0 | F79: 0 | G79: 214 | H79: 217 | I79: 0 | J79: 0
A80: 2 | C80: по трудови правоотношения | E80: =SUM(B:E!E80) -> 0 | F80: =SUM(B:E!F80) -> 0 | G80: =SUM(B:E!G80) -> 19 | H80: =SUM(B:E!H80) -> 19 | I80: =SUM(B:E!I80) -> 0 | J80: =SUM(B:E!J80) -> 0
A81: 2 | C81: по служебни правоотношения | E81: =SUM(B:E!E81) -> 0 | F81: =SUM(B:E!F81) -> 0 | G81: =SUM(B:E!G81) -> 195 | H81: =SUM(B:E!H81) -> 198 | I81: =SUM(B:E!I81) -> 0 | J81: =SUM(B:E!J81) -> 0
A82: =IF(MAX(E82:J82)=0,IF(MIN(E82:J82)=0,3,2),2) -> 3 | C82: Щатни бройки на делегирани бюджети | E82: =SUM(B:E!E82) -> 0 | F82: =SUM(B:E!F82) -> 0 | G82: =SUM(B:E!G82) -> 0 | H82: =SUM(B:E!H82) -> 0 | I82: =SUM(B:E!I82) -> 0 | J82: =SUM(B:E!J82) -> 0
A83: =IF(MAX(E83:J83)=0,IF(MIN(E83:J83)=0,3,2),2) -> 3 | C83: Средногодишни щатни бройки на делегирани бюджети | E83: =SUM(B:E!E83) -> 0 | F83: =SUM(B:E!F83) -> 0 | G83: =SUM(B:E!G83) -> 0 | H83: =SUM(B:E!H83) -> 0 | I83: =SUM(B:E!I83) -> 0 | J83: =SUM(B:E!J83) -> 0
A84: 1

Sheet B (hidden)

Sheet P (1)
A1: 1
A2: 1
A3: 1
A4: 1 | B4: Код 4300.01.01 | C4: Бюджетна програма "Регулиране не електронните съобщения и пощенските услуги"
A5: 1 | B5: Код 4300.01.00 | C5: към функционална област "Електронни съобщения и пощенски услуги"
A6: 1
A7: 1
A8: 1 | C8: =IF(ISBLANK(P_Total!C8)," ",P_Total!C8) -> П О К А З А Т Е Л И | D8: =IF(ISBLANK(P_Total!D8)," ",P_Total!D8) ->  | E8: =IF(ISBLANK(P_Total!E8)," ",P_Total!E8) -> Закон | F8: =IF(ISBLANK(P_Total!F8)," ",P_Total!F8) -> Уточнен | G8: =IF(ISBLANK(P_Total!G8)," ",P_Total!G8) -> Отчет | H8: =IF(ISBLANK(P_Total!H8)," ",P_Total!H8) -> Отчет | I8: =IF(ISBLANK(P_Total!I8)," ",P_Total!I8) -> Отчет | J8: =IF(ISBLANK(P_Total!J8)," ",P_Total!J8) -> Отчет
A9: 1 | C9: =IF(ISBLANK(P_Total!C9)," ",P_Total!C9) ->  | D9: =IF(ISBLANK(P_Total!D9)," ",P_Total!D9) ->  | E9: =IF(ISBLANK(P_Total!E9)," ",P_Total!E9) ->  | F9: =IF(ISBLANK(P_Total!F9)," ",P_Total!F9) -> план | G9: =IF(ISBLANK(P_Total!G9)," ",P_Total!G9) -> към 31 март | H9: =IF(ISBLANK(P_Total!H9)," ",P_Total!H9) -> към 30 юни | I9: =IF(ISBLANK(P_Total!I9)," ",P_Total!I9) -> към 30 септември | J9: =IF(ISBLANK(P_Total!J9)," ",P_Total!J9) -> към 31 декември
A10: 1 | C10: =IF(ISBLANK(P_Total!C10)," ",P_Total!C10) -> (в евро) | D10: =IF(ISBLANK(P_Total!D10)," ",P_Total!D10) ->  | E10: =IF(ISBLANK(P_Total!E10)," ",P_Total!E10) -> 2026 г. | F10: =IF(ISBLANK(P_Total!F10)," ",P_Total!F10) -> 2026 г. | G10: =IF(ISBLANK(P_Total!G10)," ",P_Total!G10) -> 2026 г. | H10: =IF(ISBLANK(P_Total!H10)," ",P_Total!H10) -> 2026 г. | I10: =IF(ISBLANK(P_Total!I10)," ",P_Total!I10) -> 2026 г. | J10: =IF(ISBLANK(P_Total!J10)," ",P_Total!J10) -> 2026 г.
A11: 1 | C11: =IF(ISBLANK(P_Total!C11)," ",P_Total!C11) ->  | D11: =IF(ISBLANK(P_Total!D11)," ",P_Total!D11) ->  | E11: =IF(ISBLANK(P_Total!E11)," ",P_Total!E11) ->  | F11: =IF(ISBLANK(P_Total!F11)," ",P_Total!F11) ->  | G11: =IF(ISBLANK(P_Total!G11)," ",P_Total!G11) ->  | H11: =IF(ISBLANK(P_Total!H11)," ",P_Total!H11) ->  | I11: =IF(ISBLANK(P_Total!I11)," ",P_Total!I11) ->  | J11: =IF(ISBLANK(P_Total!J11)," ",P_Total!J11) -> 
A12: 1 | C12: =IF(ISBLANK(P_Total!C12)," ",P_Total!C12) -> A | D12: =IF(ISBLANK(P_Total!D12)," ",P_Total!D12) ->  | E12: =IF(ISBLANK(P_Total!E12)," ",P_Total!E12) -> 1 | F12: =IF(ISBLANK(P_Total!F12)," ",P_Total!F12) -> 2 | G12: =IF(ISBLANK(P_Total!G12)," ",P_Total!G12) -> 3 | H12: =IF(ISBLANK(P_Total!H12)," ",P_Total!H12) -> 4 | I12: =IF(ISBLANK(P_Total!I12)," ",P_Total!I12) -> 5 | J12: =IF(ISBLANK(P_Total!J12)," ",P_Total!J12) -> 6
A13: 1
A14: 1 | C14: РАЗХОДИ - ВСИЧКО | D14: 02 | E14: =E16 -> 0 | F14: 0 | G14: 2009248 | H14: 5793612 | I14: 0 | J14: 0
A15: 1
A16: 1 | C16: Общо разходи | E16: =SUBTOTAL(9,E17:E71) -> 0 | F16: 0 | G16: 2009248 | H16: 5793612 | I16: 0 | J16: 0
A17: 1 | B17: 1. | C17: Общо ведомствени разходи | E17: =SUBTOTAL(9,E18:E36) -> 0 | F17: 0 | G17: 1959530 | H17: 5743894 | I17: 0 | J17: 0
A18: =IF(MAX(E18:J18)=0,IF(MIN(E18:J18)=0,3,2),2) -> 2 | C18: Персонал | E18: =SUBTOTAL(9,E19:E22) -> 0 | F18: 0 | G18: 1645601 | H18: 3476314 | I18: 0 | J18: 0
A19: 2 | C19: Заплати и възнаграждения за персонала, нает по трудови и служебни правоотношения | D19: 01-00 | G19: 1234341 | H19: 2652148
A20: 2 | C20: Други възнаграждения и плащания за персонала | D20: 02-00 | G20: 56299 | H20: 86622
A21: 2 | C21: Задължителни осигурителни вноски от работодатели | D21: 05-00 | G21: 354961 | H21: 737544
A22: 3 | C22: Вноски за доброволно осигуряване | D22: 08-00
A23: 2 | C23: Издръжка | E23: =SUBTOTAL(9,E24:E30) -> 0 | F23: 0 | G23: 309227 | H23: 716039 | I23: 0 | J23: 0
A24: 2 | C24: Издръжка | D24: 10-00 | G24: 307711 | H24: 684375
A25: =IF(MAX(E25:J25)=0,IF(MIN(E25:J25)=0,3,2),2) -> 2 | C25: Платени данъци, такси и административни санкции | D25: 19-00 | G25: 1516 | H25: 31664
A26: 3 | C26: Лихви | E26: =SUBTOTAL(9,E27:E28) -> 0 | F26: 0 | G26: 0 | H26: 0 | I26: 0 | J26: 0
A27: 3 | C27: Лихви по външни заеми
A28: 3 | C28: Лихви по вътрешни заеми
A29: =IF(MAX(E29:J29)=0,IF(MIN(E29:J29)=0,3,2),2) -> 3 | C29: Текущи трансфери, обезщетения и помощи за домакинствата | D29: 42-00
A30: 3 | C30: Разходи за членски внос и участие в нетърговски организации и дейности | D30: 46-00
A31: 2 | C31: Капиталови разходи | E31: =SUBTOTAL(9,E32:E36) -> 0 | F31: 0 | G31: 4702 | H31: 1551541 | I31: 0 | J31: 0
A32: 2 | C32: Основен ремонт на дълготрайни материални активи | D32: 51-00 | G32: 4702 | H32: 4702
A33: 2 | C33: Придобиване на дълготрайни материални активи | D33: 52-00 | H33: 1546839
A34: 3 | C34: Придобиване на нематериални дълготрайни активи | D34: 53-00
A35: 3 | C35: Придобиване на земя | D35: 54-00
A36: 3 | C36: Капиталови трансфери | D36: 55-00
A37: 1 | B37: 2. | C37: Администрирани разходни параграфи по бюджета | E37: =SUBTOTAL(9,E38:E70) -> 0 | F37: 0 | G37: 49718 | H37: 49718 | I37: 0 | J37: 0
A38: =IF(MAX(E38:J38)=0,IF(MIN(E38:J38)=0,3,2),2) -> 2 | C38: Текущи разходи | E38: =SUBTOTAL(9,E39:E57) -> 0 | F38: 0 | G38: 49718 | H38: 49718 | I38: 0 | J38: 0
A39: 3 | C39: Персонал | E39: =SUBTOTAL(9,E40:E43) -> 0 | F39: 0 | G39: 0 | H39: 0 | I39: 0 | J39: 0
A40: =IF(MAX(E40:J40)=0,IF(MIN(E40:J40)=0,3,2),2) -> 3 | C40: Заплати и възнаграждения за персонала, нает по трудови и служебни правоотношения | D40: 01-00
A41: =IF(MAX(E41:J41)=0,IF(MIN(E41:J41)=0,3,2),2) -> 3 | C41: Други възнаграждения и плащания за персонала | D41: 02-00
A42: 3 | C42: Задължителни осигурителни вноски от работодатели | D42: 05-00
A43: 3 | C43: Вноски за доброволно осигуряване | D43: 08-00
A44: 3 | C44: Издръжка | D44: 10-00
A45: =IF(MAX(E45:J45)=0,IF(MIN(E45:J45)=0,3,2),2) -> 3 | C45: Платени данъци, такси и административни санкции | D45: 19-00
A46: 3 | C46: Лихви | E46: =SUBTOTAL(9,E47:E48) -> 0 | F46: 0 | G46: 0 | H46: 0 | I46: 0 | J46: 0
A47: 3 | C47: Лихви по външни заеми
A48: 3 | C48: Лихви по вътрешни заеми
A49: 3 | C49: Здравноосигурителни плащания | D49: 39-00
A50: 3 | C50: Стипендии | D50: 40-00
A51: 3 | C51: Пенсии | D51: 41-00
A52: 3 | C52: Текущи трансфери, обезщетения и помощи за домакинствата | D52: 42-00
A53: 3 | C53: Субсидии и други текущи трансфери за нефинансови предприятия | D53: 43-00
A54: 3 | C54: Субсидии и други текущи трансфери за осъществяване на болнична помощ | D54: 43-02
A55: =IF(MAX(E55:J55)=0,IF(MIN(E55:J55)=0,3,2),2) -> 3 | C55: Субсидии и други текущи трансфери за финансови институции | D55: 44-00
A56: 3 | C56: Субсидии и други текущи трансфери за юридически лица с нестопанска цел | D56: 45-00
A57: 2 | C57: Разходи за членски внос и участие в нетърговски организации и дейности | D57: 46-00 | G57: 49718 | H57: 49718
A58: 3 | C58: Предоставени текущи и капиталови трансфери за чужбина | D58: 49-00 | E58: =SUBTOTAL(9,E59:E60) -> 0 | F58: 0 | G58: 0 | H58: 0 | I58: 0 | J58: 0
A59: =IF(MAX(E59:J59)=0,IF(MIN(E59:J59)=0,3,2),2) -> 3 | C59: Текущи трансфери за чужбина | D59: 49-01
A60: 3 | C60: Капиталови трансфери за чужбина | D60: 49-02
A61: 3 | C61: Капиталови разходи | E61: =SUBTOTAL(9,E62:E66) -> 0 | F61: 0 | G61: 0 | H61: 0 | I61: 0 | J61: 0
A62: 3 | C62: Основен ремонт на дълготрайни материални активи | D62: 51-00
A63: 3 | C63: Придобиване на дълготрайни материални активи | D63: 52-00
A64: 3 | C64: Придобиване на нематериални дълготрайни активи | D64: 53-00
A65: 3 | C65: Придобиване на земя | D65: 54-00
A66: 3 | C66: Капиталови трансфери | D66: 55-00
A67: 3 | C67: Прираст на държавния резерв и изкупуване на земеделска продукция | E67: =SUBTOTAL(9,E68:E70) -> 0 | F67: 0 | G67: 0 | H67: 0 | I67: 0 | J67: 0
A68: 3 | C68: Плащания за попълване на държавния резерв | D68: 57-01
A69: 3 | C69: Постъпления от продажба на държавния резерв (-) | D69: 40-71
A70: 3 | C70: Плащания за изкупуване на земеделска продукция | D70: 57-02
A71: 3 | B71: 3. | C71: Резерв за непредвидени и неотложни разходи | D71: 00-98
A72: 1
A73: 1 | C73: НАТУРАЛНИ ПОКАЗАТЕЛИ
A74: =IF(MAX(E74:J74)=0,IF(MIN(E74:J74)=0,3,2),2) -> 2 | C74: Щатни бройки - общо | E74: =E76+E82 -> 0 | F74: 0 | G74: 216 | H74: 218 | I74: 0 | J74: 0
A75: 2 | C75: Средногодишни щатни бройки - общо | E75: =E79+E83 -> 0 | F75: 0 | G75: 214 | H75: 217 | I75: 0 | J75: 0
A76: 2 | C76: Щатни бройки | E76: =SUM(E77:E78) -> 0 | F76: 0 | G76: 216 | H76: 218 | I76: 0 | J76: 0
A77: 2 | C77: по трудови правоотношения | G77: 20 | H77: 19
A78: 2 | C78: по служебни правоотношения | G78: 196 | H78: 199
A79: 2 | C79: Средногодишни щатни бройки | E79: =SUM(E80:E81) -> 0 | F79: 0 | G79: 214 | H79: 217 | I79: 0 | J79: 0
A80: 2 | C80: по трудови правоотношения | G80: 19 | H80: 19
A81: 2 | C81: по служебни правоотношения | G81: 195 | H81: 198
A82: 3 | C82: Щатни бройки на делегирани бюджети
A83: 3 | C83: Средногодишни щатни бройки на делегирани бюджети
A84: 1

Sheet E (hidden)

Sheet Progr
A1: 1
A2: 1 | D2: Обобщена справка за разходите по бюджетни програми
A3: 1
A4: 1 | D4: =P_Total!C4 -> на Комисия за регулиране на съобщенията
A5: 1
A6: 1
A7: 1
A8: 1 | C8: Код | D8: Наименование на бюджетните програми | E8: =IF(ISBLANK(P_Total!D8)," ",P_Total!D8) ->  | F8: =IF(ISBLANK(P_Total!E8)," ",P_Total!E8) -> Закон | G8: =IF(ISBLANK(P_Total!F8)," ",P_Total!F8) -> Уточнен | H8: =IF(ISBLANK(P_Total!G8)," ",P_Total!G8) -> Отчет | I8: =IF(ISBLANK(P_Total!H8)," ",P_Total!H8) -> Отчет | J8: =IF(ISBLANK(P_Total!I8)," ",P_Total!I8) -> Отчет | K8: =IF(ISBLANK(P_Total!J8)," ",P_Total!J8) -> Отчет
A9: 1 | D9: =IF(ISBLANK(P_Total!C9)," ",P_Total!C9) ->  | E9: =IF(ISBLANK(P_Total!D9)," ",P_Total!D9) ->  | F9: =IF(ISBLANK(P_Total!E9)," ",P_Total!E9) ->  | G9: =IF(ISBLANK(P_Total!F9)," ",P_Total!F9) -> план | H9: =IF(ISBLANK(P_Total!G9)," ",P_Total!G9) -> към 31 март | I9: =IF(ISBLANK(P_Total!H9)," ",P_Total!H9) -> към 30 юни | J9: =IF(ISBLANK(P_Total!I9)," ",P_Total!I9) -> към 30 септември | K9: =IF(ISBLANK(P_Total!J9)," ",P_Total!J9) -> към 31 декември
A10: 1 | D10: =IF(ISBLANK(P_Total!C10)," ",P_Total!C10) -> (в евро) | E10: =IF(ISBLANK(P_Total!D10)," ",P_Total!D10) ->  | F10: =IF(ISBLANK(P_Total!E10)," ",P_Total!E10) -> 2026 г. | G10: =IF(ISBLANK(P_Total!F10)," ",P_Total!F10) -> 2026 г. | H10: =IF(ISBLANK(P_Total!G10)," ",P_Total!G10) -> 2026 г. | I10: =IF(ISBLANK(P_Total!H10)," ",P_Total!H10) -> 2026 г. | J10: =IF(ISBLANK(P_Total!I10)," ",P_Total!I10) -> 2026 г. | K10: =IF(ISBLANK(P_Total!J10)," ",P_Total!J10) -> 2026 г.
A11: 1 | D11: =IF(ISBLANK(P_Total!C11)," ",P_Total!C11) ->  | E11: =IF(ISBLANK(P_Total!D11)," ",P_Total!D11) ->  | F11: =IF(ISBLANK(P_Total!E11)," ",P_Total!E11) ->  | G11: =IF(ISBLANK(P_Total!F11)," ",P_Total!F11) ->  | H11: =IF(ISBLANK(P_Total!G11)," ",P_Total!G11) ->  | I11: =IF(ISBLANK(P_Total!H11)," ",P_Total!H11) ->  | J11: =IF(ISBLANK(P_Total!I11)," ",P_Total!I11) ->  | K11: =IF(ISBLANK(P_Total!J11)," ",P_Total!J11) -> 
A12: 1 | D12: =IF(ISBLANK(P_Total!C12)," ",P_Total!C12) -> A | E12: =IF(ISBLANK(P_Total!D12)," ",P_Total!D12) ->  | F12: =IF(ISBLANK(P_Total!E12)," ",P_Total!E12) -> 1 | G12: =IF(ISBLANK(P_Total!F12)," ",P_Total!F12) -> 2 | H12: =IF(ISBLANK(P_Total!G12)," ",P_Total!G12) -> 3 | I12: =IF(ISBLANK(P_Total!H12)," ",P_Total!H12) -> 4 | J12: =IF(ISBLANK(P_Total!I12)," ",P_Total!I12) -> 5 | K12: =IF(ISBLANK(P_Total!J12)," ",P_Total!J12) -> 6
A13: 1
A14: 1 | D14: ОБЩО РАЗХОДИ | F14: =P_Total!E$14 -> 0 | G14: =P_Total!F$14 -> 0 | H14: =P_Total!G$14 -> 2009248 | I14: =P_Total!H$14 -> 5793612 | J14: =P_Total!I$14 -> 0 | K14: =P_Total!J$14 -> 0
A15: 1 | F15: =F14-F16 -> 0 | G15: 0 | H15: 0 | I15: 0 | J15: 0 | K15: 0
A16: 1 | D16: Разходи по бюджетни програми | F16: =SUBTOTAL(9,F17:F47) -> 0 | G16: 0 | H16: 2009248 | I16: 5793612 | J16: 0 | K16: 0
A17: =IF(AND(MAX(F17:K17)=0,MIN(F17:K17)=0,C17=" "),3,2) -> 2 | B17: P (1) | C17: =IF($E17=0," ",'P (1)'!B$4) -> Код 4300.01.01 | D17: =IF($E17=0," ",'P (1)'!C$4) -> Бюджетна програма "Регулиране не електронните съобщения и пощенските услуги" | E17: =VLOOKUP($B17,Inf!$B$11:$C$40,2,FALSE) -> 1 | F17: =IF($E17=0,0,'P (1)'!E$14) -> 0 | G17: =IF($E17=0,0,'P (1)'!F$14) -> 0 | H17: =IF($E17=0,0,'P (1)'!G$14) -> 2009248 | I17: =IF($E17=0,0,'P (1)'!H$14) -> 5793612 | J17: =IF($E17=0,0,'P (1)'!I$14) -> 0 | K17: =IF($E17=0,0,'P (1)'!J$14) -> 0
A18: =IF(AND(MAX(F18:K18)=0,MIN(F18:K18)=0,C18=" "),3,2) -> 3 | B18: P (2) | C18: =IF($E18=0," ",P!B$4) ->  | D18: =IF($E18=0," ",P!C$4) ->  | E18: =VLOOKUP($B18,Inf!$B$11:$C$40,2,FALSE) -> 0 | F18: =IF($E18=0,0,P!E$14) -> 0 | G18: =IF($E18=0,0,P!F$14) -> 0 | H18: =IF($E18=0,0,P!G$14) -> 0 | I18: =IF($E18=0,0,P!H$14) -> 0 | J18: =IF($E18=0,0,P!I$14) -> 0 | K18: =IF($E18=0,0,P!J$14) -> 0
A19: 3 | B19: P (3) | C19: =IF($E19=0," ",P!B$4) ->  | D19: =IF($E19=0," ",P!C$4) ->  | E19: =VLOOKUP($B19,Inf!$B$11:$C$40,2,FALSE) -> 0 | F19: =IF($E19=0,0,P!E$14) -> 0 | G19: =IF($E19=0,0,P!F$14) -> 0 | H19: =IF($E19=0,0,P!G$14) -> 0 | I19: =IF($E19=0,0,P!H$14) -> 0 | J19: =IF($E19=0,0,P!I$14) -> 0 | K19: =IF($E19=0,0,P!J$14) -> 0
A20: 3 | B20: P (4) | C20: =IF($E20=0," ",P!B$4) ->  | D20: =IF($E20=0," ",P!C$4) ->  | E20: =VLOOKUP($B20,Inf!$B$11:$C$40,2,FALSE) -> 0 | F20: =IF($E20=0,0,P!E$14) -> 0 | G20: =IF($E20=0,0,P!F$14) -> 0 | H20: =IF($E20=0,0,P!G$14) -> 0 | I20: =IF($E20=0,0,P!H$14) -> 0 | J20: =IF($E20=0,0,P!I$14) -> 0 | K20: =IF($E20=0,0,P!J$14) -> 0
A21: 3 | B21: P (5) | C21: =IF($E21=0," ",P!B$4) ->  | D21: =IF($E21=0," ",P!C$4) ->  | E21: =VLOOKUP($B21,Inf!$B$11:$C$40,2,FALSE) -> 0 | F21: =IF($E21=0,0,P!E$14) -> 0 | G21: =IF($E21=0,0,P!F$14) -> 0 | H21: =IF($E21=0,0,P!G$14) -> 0 | I21: =IF($E21=0,0,P!H$14) -> 0 | J21: =IF($E21=0,0,P!I$14) -> 0 | K21: =IF($E21=0,0,P!J$14) -> 0
A22: 3 | B22: P (6) | C22: =IF($E22=0," ",P!B$4) ->  | D22: =IF($E22=0," ",P!C$4) ->  | E22: =VLOOKUP($B22,Inf!$B$11:$C$40,2,FALSE) -> 0 | F22: =IF($E22=0,0,P!E$14) -> 0 | G22: =IF($E22=0,0,P!F$14) -> 0 | H22: =IF($E22=0,0,P!G$14) -> 0 | I22: =IF($E22=0,0,P!H$14) -> 0 | J22: =IF($E22=0,0,P!I$14) -> 0 | K22: =IF($E22=0,0,P!J$14) -> 0
A23: 3 | B23: P (7) | C23: =IF($E23=0," ",P!B$4) ->  | D23: =IF($E23=0," ",P!C$4) ->  | E23: =VLOOKUP($B23,Inf!$B$11:$C$40,2,FALSE) -> 0 | F23: =IF($E23=0,0,P!E$14) -> 0 | G23: =IF($E23=0,0,P!F$14) -> 0 | H23: =IF($E23=0,0,P!G$14) -> 0 | I23: =IF($E23=0,0,P!H$14) -> 0 | J23: =IF($E23=0,0,P!I$14) -> 0 | K23: =IF($E23=0,0,P!J$14) -> 0
A24: 3 | B24: P (8) | C24: =IF($E24=0," ",P!B$4) ->  | D24: =IF($E24=0," ",P!C$4) ->  | E24: =VLOOKUP($B24,Inf!$B$11:$C$40,2,FALSE) -> 0 | F24: =IF($E24=0,0,P!E$14) -> 0 | G24: =IF($E24=0,0,P!F$14) -> 0 | H24: =IF($E24=0,0,P!G$14) -> 0 | I24: =IF($E24=0,0,P!H$14) -> 0 | J24: =IF($E24=0,0,P!I$14) -> 0 | K24: =IF($E24=0,0,P!J$14) -> 0
A25: 3 | B25: P (9) | C25: =IF($E25=0," ",P!B$4) ->  | D25: =IF($E25=0," ",P!C$4) ->  | E25: =VLOOKUP($B25,Inf!$B$11:$C$40,2,FALSE) -> 0 | F25: =IF($E25=0,0,P!E$14) -> 0 | G25: =IF($E25=0,0,P!F$14) -> 0 | H25: =IF($E25=0,0,P!G$14) -> 0 | I25: =IF($E25=0,0,P!H$14) -> 0 | J25: =IF($E25=0,0,P!I$14) -> 0 | K25: =IF($E25=0,0,P!J$14) -> 0
A26: 3 | B26: P (10) | C26: =IF($E26=0," ",P!B$4) ->  | D26: =IF($E26=0," ",P!C$4) ->  | E26: =VLOOKUP($B26,Inf!$B$11:$C$40,2,FALSE) -> 0 | F26: =IF($E26=0,0,P!E$14) -> 0 | G26: =IF($E26=0,0,P!F$14) -> 0 | H26: =IF($E26=0,0,P!G$14) -> 0 | I26: =IF($E26=0,0,P!H$14) -> 0 | J26: =IF($E26=0,0,P!I$14) -> 0 | K26: =IF($E26=0,0,P!J$14) -> 0
A27: 3 | B27: P (11) | C27: =IF($E27=0," ",P!B$4) ->  | D27: =IF($E27=0," ",P!C$4) ->  | E27: =VLOOKUP($B27,Inf!$B$11:$C$40,2,FALSE) -> 0 | F27: =IF($E27=0,0,P!E$14) -> 0 | G27: =IF($E27=0,0,P!F$14) -> 0 | H27: =IF($E27=0,0,P!G$14) -> 0 | I27: =IF($E27=0,0,P!H$14) -> 0 | J27: =IF($E27=0,0,P!I$14) -> 0 | K27: =IF($E27=0,0,P!J$14) -> 0
A28: 3 | B28: P (12) | C28: =IF($E28=0," ",P!B$4) ->  | D28: =IF($E28=0," ",P!C$4) ->  | E28: =VLOOKUP($B28,Inf!$B$11:$C$40,2,FALSE) -> 0 | F28: =IF($E28=0,0,P!E$14) -> 0 | G28: =IF($E28=0,0,P!F$14) -> 0 | H28: =IF($E28=0,0,P!G$14) -> 0 | I28: =IF($E28=0,0,P!H$14) -> 0 | J28: =IF($E28=0,0,P!I$14) -> 0 | K28: =IF($E28=0,0,P!J$14) -> 0
A29: 3 | B29: P (13) | C29: =IF($E29=0," ",P!B$4) ->  | D29: =IF($E29=0," ",P!C$4) ->  | E29: =VLOOKUP($B29,Inf!$B$11:$C$40,2,FALSE) -> 0 | F29: =IF($E29=0,0,P!E$14) -> 0 | G29: =IF($E29=0,0,P!F$14) -> 0 | H29: =IF($E29=0,0,P!G$14) -> 0 | I29: =IF($E29=0,0,P!H$14) -> 0 | J29: =IF($E29=0,0,P!I$14) -> 0 | K29: =IF($E29=0,0,P!J$14) -> 0
A30: 3 | B30: P (14) | C30: =IF($E30=0," ",P!B$4) ->  | D30: =IF($E30=0," ",P!C$4) ->  | E30: =VLOOKUP($B30,Inf!$B$11:$C$40,2,FALSE) -> 0 | F30: =IF($E30=0,0,P!E$14) -> 0 | G30: =IF($E30=0,0,P!F$14) -> 0 | H30: =IF($E30=0,0,P!G$14) -> 0 | I30: =IF($E30=0,0,P!H$14) -> 0 | J30: =IF($E30=0,0,P!I$14) -> 0 | K30: =IF($E30=0,0,P!J$14) -> 0
A31: 3 | B31: P (15) | C31: =IF($E31=0," ",P!B$4) ->  | D31: =IF($E31=0," ",P!C$4) ->  | E31: =VLOOKUP($B31,Inf!$B$11:$C$40,2,FALSE) -> 0 | F31: =IF($E31=0,0,P!E$14) -> 0 | G31: =IF($E31=0,0,P!F$14) -> 0 | H31: =IF($E31=0,0,P!G$14) -> 0 | I31: =IF($E31=0,0,P!H$14) -> 0 | J31: =IF($E31=0,0,P!I$14) -> 0 | K31: =IF($E31=0,0,P!J$14) -> 0
A32: 3 | B32: P (16) | C32: =IF($E32=0," ",P!B$4) ->  | D32: =IF($E32=0," ",P!C$4) ->  | E32: =VLOOKUP($B32,Inf!$B$11:$C$40,2,FALSE) -> 0 | F32: =IF($E32=0,0,P!E$14) -> 0 | G32: =IF($E32=0,0,P!F$14) -> 0 | H32: =IF($E32=0,0,P!G$14) -> 0 | I32: =IF($E32=0,0,P!H$14) -> 0 | J32: =IF($E32=0,0,P!I$14) -> 0 | K32: =IF($E32=0,0,P!J$14) -> 0
A33: 3 | B33: P (17) | C33: =IF($E33=0," ",P!B$4) ->  | D33: =IF($E33=0," ",P!C$4) ->  | E33: =VLOOKUP($B33,Inf!$B$11:$C$40,2,FALSE) -> 0 | F33: =IF($E33=0,0,P!E$14) -> 0 | G33: =IF($E33=0,0,P!F$14) -> 0 | H33: =IF($E33=0,0,P!G$14) -> 0 | I33: =IF($E33=0,0,P!H$14) -> 0 | J33: =IF($E33=0,0,P!I$14) -> 0 | K33: =IF($E33=0,0,P!J$14) -> 0
A34: 3 | B34: P (18) | C34: =IF($E34=0," ",P!B$4) ->  | D34: =IF($E34=0," ",P!C$4) ->  | E34: =VLOOKUP($B34,Inf!$B$11:$C$40,2,FALSE) -> 0 | F34: =IF($E34=0,0,P!E$14) -> 0 | G34: =IF($E34=0,0,P!F$14) -> 0 | H34: =IF($E34=0,0,P!G$14) -> 0 | I34: =IF($E34=0,0,P!H$14) -> 0 | J34: =IF($E34=0,0,P!I$14) -> 0 | K34: =IF($E34=0,0,P!J$14) -> 0
A35: 3 | B35: P (19) | C35: =IF($E35=0," ",P!B$4) ->  | D35: =IF($E35=0," ",P!C$4) ->  | E35: =VLOOKUP($B35,Inf!$B$11:$C$40,2,FALSE) -> 0 | F35: =IF($E35=0,0,P!E$14) -> 0 | G35: =IF($E35=0,0,P!F$14) -> 0 | H35: =IF($E35=0,0,P!G$14) -> 0 | I35: =IF($E35=0,0,P!H$14) -> 0 | J35: =IF($E35=0,0,P!I$14) -> 0 | K35: =IF($E35=0,0,P!J$14) -> 0
A36: 3 | B36: P (20) | C36: =IF($E36=0," ",P!B$4) ->  | D36: =IF($E36=0," ",P!C$4) ->  | E36: =VLOOKUP($B36,Inf!$B$11:$C$40,2,FALSE) -> 0 | F36: =IF($E36=0,0,P!E$14) -> 0 | G36: =IF($E36=0,0,P!F$14) -> 0 | H36: =IF($E36=0,0,P!G$14) -> 0 | I36: =IF($E36=0,0,P!H$14) -> 0 | J36: =IF($E36=0,0,P!I$14) -> 0 | K36: =IF($E36=0,0,P!J$14) -> 0
A37: 3 | B37: P (21) | C37: =IF($E37=0," ",P!B$4) ->  | D37: =IF($E37=0," ",P!C$4) ->  | E37: =VLOOKUP($B37,Inf!$B$11:$C$40,2,FALSE) -> 0 | F37: =IF($E37=0,0,P!E$14) -> 0 | G37: =IF($E37=0,0,P!F$14) -> 0 | H37: =IF($E37=0,0,P!G$14) -> 0 | I37: =IF($E37=0,0,P!H$14) -> 0 | J37: =IF($E37=0,0,P!I$14) -> 0 | K37: =IF($E37=0,0,P!J$14) -> 0
A38: 3 | B38: P (22) | C38: =IF($E38=0," ",P!B$4) ->  | D38: =IF($E38=0," ",P!C$4) ->  | E38: =VLOOKUP($B38,Inf!$B$11:$C$40,2,FALSE) -> 0 | F38: =IF($E38=0,0,P!E$14) -> 0 | G38: =IF($E38=0,0,P!F$14) -> 0 | H38: =IF($E38=0,0,P!G$14) -> 0 | I38: =IF($E38=0,0,P!H$14) -> 0 | J38: =IF($E38=0,0,P!I$14) -> 0 | K38: =IF($E38=0,0,P!J$14) -> 0
A39: 3 | B39: P (23) | C39: =IF($E39=0," ",P!B$4) ->  | D39: =IF($E39=0," ",P!C$4) ->  | E39: =VLOOKUP($B39,Inf!$B$11:$C$40,2,FALSE) -> 0 | F39: =IF($E39=0,0,P!E$14) -> 0 | G39: =IF($E39=0,0,P!F$14) -> 0 | H39: =IF($E39=0,0,P!G$14) -> 0 | I39: =IF($E39=0,0,P!H$14) -> 0 | J39: =IF($E39=0,0,P!I$14) -> 0 | K39: =IF($E39=0,0,P!J$14) -> 0
A40: 3 | B40: P (24) | C40: =IF($E40=0," ",P!B$4) ->  | D40: =IF($E40=0," ",P!C$4) ->  | E40: =VLOOKUP($B40,Inf!$B$11:$C$40,2,FALSE) -> 0 | F40: =IF($E40=0,0,P!E$14) -> 0 | G40: =IF($E40=0,0,P!F$14) -> 0 | H40: =IF($E40=0,0,P!G$14) -> 0 | I40: =IF($E40=0,0,P!H$14) -> 0 | J40: =IF($E40=0,0,P!I$14) -> 0 | K40: =IF($E40=0,0,P!J$14) -> 0
A41: 3 | B41: P (25) | C41: =IF($E41=0," ",P!B$4) ->  | D41: =IF($E41=0," ",P!C$4) ->  | E41: =VLOOKUP($B41,Inf!$B$11:$C$40,2,FALSE) -> 0 | F41: =IF($E41=0,0,P!E$14) -> 0 | G41: =IF($E41=0,0,P!F$14) -> 0 | H41: =IF($E41=0,0,P!G$14) -> 0 | I41: =IF($E41=0,0,P!H$14) -> 0 | J41: =IF($E41=0,0,P!I$14) -> 0 | K41: =IF($E41=0,0,P!J$14) -> 0
A42: 3 | B42: P (26) | C42: =IF($E42=0," ",P!B$4) ->  | D42: =IF($E42=0," ",P!C$4) ->  | E42: =VLOOKUP($B42,Inf!$B$11:$C$40,2,FALSE) -> 0 | F42: =IF($E42=0,0,P!E$14) -> 0 | G42: =IF($E42=0,0,P!F$14) -> 0 | H42: =IF($E42=0,0,P!G$14) -> 0 | I42: =IF($E42=0,0,P!H$14) -> 0 | J42: =IF($E42=0,0,P!I$14) -> 0 | K42: =IF($E42=0,0,P!J$14) -> 0
A43: 3 | B43: P (27) | C43: =IF($E43=0," ",P!B$4) ->  | D43: =IF($E43=0," ",P!C$4) ->  | E43: =VLOOKUP($B43,Inf!$B$11:$C$40,2,FALSE) -> 0 | F43: =IF($E43=0,0,P!E$14) -> 0 | G43: =IF($E43=0,0,P!F$14) -> 0 | H43: =IF($E43=0,0,P!G$14) -> 0 | I43: =IF($E43=0,0,P!H$14) -> 0 | J43: =IF($E43=0,0,P!I$14) -> 0 | K43: =IF($E43=0,0,P!J$14) -> 0
A44: 3 | B44: P (28) | C44: =IF($E44=0," ",P!B$4) ->  | D44: =IF($E44=0," ",P!C$4) ->  | E44: =VLOOKUP($B44,Inf!$B$11:$C$40,2,FALSE) -> 0 | F44: =IF($E44=0,0,P!E$14) -> 0 | G44: =IF($E44=0,0,P!F$14) -> 0 | H44: =IF($E44=0,0,P!G$14) -> 0 | I44: =IF($E44=0,0,P!H$14) -> 0 | J44: =IF($E44=0,0,P!I$14) -> 0 | K44: =IF($E44=0,0,P!J$14) -> 0
A45: 3 | B45: P (29) | C45: =IF($E45=0," ",P!B$4) ->  | D45: =IF($E45=0," ",P!C$4) ->  | E45: =VLOOKUP($B45,Inf!$B$11:$C$40,2,FALSE) -> 0 | F45: =IF($E45=0,0,P!E$14) -> 0 | G45: =IF($E45=0,0,P!F$14) -> 0 | H45: =IF($E45=0,0,P!G$14) -> 0 | I45: =IF($E45=0,0,P!H$14) -> 0 | J45: =IF($E45=0,0,P!I$14) -> 0 | K45: =IF($E45=0,0,P!J$14) -> 0
A46: 3 | B46: P (30) | C46: =IF($E46=0," ",P!B$4) ->  | D46: =IF($E46=0," ",P!C$4) ->  | E46: =VLOOKUP($B46,Inf!$B$11:$C$40,2,FALSE) -> 0 | F46: =IF($E46=0,0,P!E$14) -> 0 | G46: =IF($E46=0,0,P!F$14) -> 0 | H46: =IF($E46=0,0,P!G$14) -> 0 | I46: =IF($E46=0,0,P!H$14) -> 0 | J46: =IF($E46=0,0,P!I$14) -> 0 | K46: =IF($E46=0,0,P!J$14) -> 0
A47: 1

Sheet PomoshtenSheet
A1: 1
A2: 1 | C2: Помощен Sheet - Сумата на разходите от всички програми (от Sheet P_Total) по параграфи - за сравнение с отчета по ЕБК (за проверка).
A3: 1
A4: 1 | C4: Сумата на разходите от всички програми по определен показател трябва да съответства на размера на същият показател от отчета по ЕБК.
A5: 1
A6: 1
A7: 1
A8: 1 | C8: П О К А З А Т Е Л И | E8: =IF(ISBLANK(P_Total!E8)," ",P_Total!E8) -> Закон | F8: =IF(ISBLANK(P_Total!F8)," ",P_Total!F8) -> Уточнен | G8: =IF(ISBLANK(P_Total!G8)," ",P_Total!G8) -> Отчет | H8: =IF(ISBLANK(P_Total!H8)," ",P_Total!H8) -> Отчет | I8: =IF(ISBLANK(P_Total!I8)," ",P_Total!I8) -> Отчет | J8: =IF(ISBLANK(P_Total!J8)," ",P_Total!J8) -> Отчет
A9: 1 | E9: =IF(ISBLANK(P_Total!E9)," ",P_Total!E9) ->  | F9: =IF(ISBLANK(P_Total!F9)," ",P_Total!F9) -> план | G9: =IF(ISBLANK(P_Total!G9)," ",P_Total!G9) -> към 31 март | H9: =IF(ISBLANK(P_Total!H9)," ",P_Total!H9) -> към 30 юни | I9: =IF(ISBLANK(P_Total!I9)," ",P_Total!I9) -> към 30 септември | J9: =IF(ISBLANK(P_Total!J9)," ",P_Total!J9) -> към 31 декември
A10: 1 | C10: =P_Total!C10 -> (в евро) | E10: =IF(ISBLANK(P_Total!E10)," ",P_Total!E10) -> 2026 г. | F10: =IF(ISBLANK(P_Total!F10)," ",P_Total!F10) -> 2026 г. | G10: =IF(ISBLANK(P_Total!G10)," ",P_Total!G10) -> 2026 г. | H10: =IF(ISBLANK(P_Total!H10)," ",P_Total!H10) -> 2026 г. | I10: =IF(ISBLANK(P_Total!I10)," ",P_Total!I10) -> 2026 г. | J10: =IF(ISBLANK(P_Total!J10)," ",P_Total!J10) -> 2026 г.
A11: 1 | E11: =IF(ISBLANK(P_Total!E11)," ",P_Total!E11) ->  | F11: =IF(ISBLANK(P_Total!F11)," ",P_Total!F11) ->  | G11: =IF(ISBLANK(P_Total!G11)," ",P_Total!G11) ->  | H11: =IF(ISBLANK(P_Total!H11)," ",P_Total!H11) ->  | I11: =IF(ISBLANK(P_Total!I11)," ",P_Total!I11) ->  | J11: =IF(ISBLANK(P_Total!J11)," ",P_Total!J11) -> 
A12: 1 | C12: A | E12: =IF(ISBLANK(P_Total!E12)," ",P_Total!E12) -> 1 | F12: =IF(ISBLANK(P_Total!F12)," ",P_Total!F12) -> 2 | G12: =IF(ISBLANK(P_Total!G12)," ",P_Total!G12) -> 3 | H12: =IF(ISBLANK(P_Total!H12)," ",P_Total!H12) -> 4 | I12: =IF(ISBLANK(P_Total!I12)," ",P_Total!I12) -> 5 | J12: =IF(ISBLANK(P_Total!J12)," ",P_Total!J12) -> 6
A13: 1 | E13: =P_Total!E14-PomoshtenSheet!E14 -> 0 | F13: =P_Total!F14-PomoshtenSheet!F14 -> 0 | G13: =P_Total!G14-PomoshtenSheet!G14 -> 0 | H13: =P_Total!H14-PomoshtenSheet!H14 -> 0 | I13: =P_Total!I14-PomoshtenSheet!I14 -> 0 | J13: =P_Total!J14-PomoshtenSheet!J14 -> 0
A14: 1 | C14: II. РАЗХОДИ - ВСИЧКО | D14: 02 | E14: =E16 -> 0 | F14: 0 | G14: 2009248 | H14: 5793612 | I14: 0 | J14: 0
A15: 1
A16: =IF(MAX(E16:J16)=0,IF(MIN(E16:J16)=0,3,2),2) -> 2 | C16: Общо разходи | E16: =SUBTOTAL(9,E17:E50) -> 0 | F16: 0 | G16: 2009248 | H16: 5793612 | I16: 0 | J16: 0
A17: 2 | B17: 1. | C17: Текущи разходи | E17: =SUBTOTAL(9,E18:E36) -> 0 | F17: 0 | G17: 2004546 | H17: 4242071 | I17: 0 | J17: 0
A18: 2 | C18: Персонал | E18: =SUBTOTAL(9,E19:E22) -> 0 | F18: 0 | G18: 1645601 | H18: 3476314 | I18: 0 | J18: 0
A19: 2 | C19: Заплати и възнаграждения за персонала, нает по трудови и служебни правоотношения | D19: 01-00 | E19: =P_Total!E19+P_Total!E40 -> 0 | F19: =P_Total!F19+P_Total!F40 -> 0 | G19: =P_Total!G19+P_Total!G40 -> 1234341 | H19: =P_Total!H19+P_Total!H40 -> 2652148 | I19: =P_Total!I19+P_Total!I40 -> 0 | J19: =P_Total!J19+P_Total!J40 -> 0
A20: 2 | C20: Други възнаграждения и плащания за персонала | D20: 02-00 | E20: =P_Total!E20+P_Total!E41 -> 0 | F20: =P_Total!F20+P_Total!F41 -> 0 | G20: =P_Total!G20+P_Total!G41 -> 56299 | H20: =P_Total!H20+P_Total!H41 -> 86622 | I20: =P_Total!I20+P_Total!I41 -> 0 | J20: =P_Total!J20+P_Total!J41 -> 0
A21: 2 | C21: Задължителни осигурителни вноски от работодатели | D21: 05-00 | E21: =P_Total!E21+P_Total!E42 -> 0 | F21: =P_Total!F21+P_Total!F42 -> 0 | G21: =P_Total!G21+P_Total!G42 -> 354961 | H21: =P_Total!H21+P_Total!H42 -> 737544 | I21: =P_Total!I21+P_Total!I42 -> 0 | J21: =P_Total!J21+P_Total!J42 -> 0
A22: 3 | C22: Вноски за доброволно осигуряване | D22: 08-00 | E22: =P_Total!E22+P_Total!E43 -> 0 | F22: =P_Total!F22+P_Total!F43 -> 0 | G22: =P_Total!G22+P_Total!G43 -> 0 | H22: =P_Total!H22+P_Total!H43 -> 0 | I22: =P_Total!I22+P_Total!I43 -> 0 | J22: =P_Total!J22+P_Total!J43 -> 0
A23: 2 | C23: Издръжка | D23: 10-00 | E23: =P_Total!E24+P_Total!E44 -> 0 | F23: =P_Total!F24+P_Total!F44 -> 0 | G23: =P_Total!G24+P_Total!G44 -> 307711 | H23: =P_Total!H24+P_Total!H44 -> 684375 | I23: =P_Total!I24+P_Total!I44 -> 0 | J23: =P_Total!J24+P_Total!J44 -> 0
A24: 2 | C24: Платени данъци, такси и административни санкции | D24: 19-00 | E24: =P_Total!E25+P_Total!E45 -> 0 | F24: =P_Total!F25+P_Total!F45 -> 0 | G24: =P_Total!G25+P_Total!G45 -> 1516 | H24: =P_Total!H25+P_Total!H45 -> 31664 | I24: =P_Total!I25+P_Total!I45 -> 0 | J24: =P_Total!J25+P_Total!J45 -> 0
A25: 3 | C25: Лихви | E25: =SUBTOTAL(9,E26:E27) -> 0 | F25: 0 | G25: 0 | H25: 0 | I25: 0 | J25: 0
A26: 3 | C26: Лихви по външни заеми | E26: =P_Total!E27+P_Total!E47 -> 0 | F26: =P_Total!F27+P_Total!F47 -> 0 | G26: =P_Total!G27+P_Total!G47 -> 0 | H26: =P_Total!H27+P_Total!H47 -> 0 | I26: =P_Total!I27+P_Total!I47 -> 0 | J26: =P_Total!J27+P_Total!J47 -> 0
A27: 3 | C27: Лихви по вътрешни заеми | E27: =P_Total!E28+P_Total!E48 -> 0 | F27: =P_Total!F28+P_Total!F48 -> 0 | G27: =P_Total!G28+P_Total!G48 -> 0 | H27: =P_Total!H28+P_Total!H48 -> 0 | I27: =P_Total!I28+P_Total!I48 -> 0 | J27: =P_Total!J28+P_Total!J48 -> 0
A28: 3 | C28: Здравноосигурителни плащания | D28: 39-00 | E28: =P_Total!E49 -> 0 | F28: =P_Total!F49 -> 0 | G28: =P_Total!G49 -> 0 | H28: =P_Total!H49 -> 0 | I28: =P_Total!I49 -> 0 | J28: =P_Total!J49 -> 0
A29: 3 | C29: Стипендии | D29: 40-00 | E29: =P_Total!E50 -> 0 | F29: =P_Total!F50 -> 0 | G29: =P_Total!G50 -> 0 | H29: =P_Total!H50 -> 0 | I29: =P_Total!I50 -> 0 | J29: =P_Total!J50 -> 0
A30: 3 | C30: Пенсии | D30: 41-00 | E30: =P_Total!E51 -> 0 | F30: =P_Total!F51 -> 0 | G30: =P_Total!G51 -> 0 | H30: =P_Total!H51 -> 0 | I30: =P_Total!I51 -> 0 | J30: =P_Total!J51 -> 0
A31: 3 | C31: Текущи трансфери, обезщетения и помощи за домакинствата | D31: 42-00 | E31: =P_Total!E52+P_Total!E29 -> 0 | F31: =P_Total!F52+P_Total!F29 -> 0 | G31: =P_Total!G52+P_Total!G29 -> 0 | H31: =P_Total!H52+P_Total!H29 -> 0 | I31: =P_Total!I52+P_Total!I29 -> 0 | J31: =P_Total!J52+P_Total!J29 -> 0
A32: 3 | C32: Субсидии и други текущи трансфери за нефинансови предприятия | D32: 43-00 | E32: =P_Total!E53 -> 0 | F32: =P_Total!F53 -> 0 | G32: =P_Total!G53 -> 0 | H32: =P_Total!H53 -> 0 | I32: =P_Total!I53 -> 0 | J32: =P_Total!J53 -> 0
A33: 3 | C33: Субсидии и други текущи трансфери за осъществяване на болнична помощ | D33: 43-02 | E33: =P_Total!E54 -> 0 | F33: =P_Total!F54 -> 0 | G33: =P_Total!G54 -> 0 | H33: =P_Total!H54 -> 0 | I33: =P_Total!I54 -> 0 | J33: =P_Total!J54 -> 0
A34: =IF(MAX(E34:J34)=0,IF(MIN(E34:J34)=0,3,2),2) -> 3 | C34: Субсидии и други текущи трансфери за финансови институции | D34: 44-00 | E34: =P_Total!E55 -> 0 | F34: =P_Total!F55 -> 0 | G34: =P_Total!G55 -> 0 | H34: =P_Total!H55 -> 0 | I34: =P_Total!I55 -> 0 | J34: =P_Total!J55 -> 0
A35: 3 | C35: Субсидии и други текущи трансфери за юридически лица с нестопанска цел | D35: 45-00 | E35: =P_Total!E56 -> 0 | F35: =P_Total!F56 -> 0 | G35: =P_Total!G56 -> 0 | H35: =P_Total!H56 -> 0 | I35: =P_Total!I56 -> 0 | J35: =P_Total!J56 -> 0
A36: 2 | C36: Разходи за членски внос и участие в нетърговски организации и дейности | D36: 46-00 | E36: =P_Total!E30+P_Total!E57 -> 0 | F36: =P_Total!F30+P_Total!F57 -> 0 | G36: =P_Total!G30+P_Total!G57 -> 49718 | H36: =P_Total!H30+P_Total!H57 -> 49718 | I36: =P_Total!I30+P_Total!I57 -> 0 | J36: =P_Total!J30+P_Total!J57 -> 0
A37: 3 | B37: 2. | C37: Предоставени текущи и капиталови трансфери за чужбина | D37: 49-00 | E37: =SUBTOTAL(9,E38:E39) -> 0 | F37: 0 | G37: 0 | H37: 0 | I37: 0 | J37: 0
A38: 3 | C38: Текущи трансфери за чужбина | D38: 49-01 | E38: =P_Total!E59 -> 0 | F38: =P_Total!F59 -> 0 | G38: =P_Total!G59 -> 0 | H38: =P_Total!H59 -> 0 | I38: =P_Total!I59 -> 0 | J38: =P_Total!J59 -> 0
A39: 3 | C39: Капиталови трансфери за чужбина | D39: 49-02 | E39: =P_Total!E60 -> 0 | F39: =P_Total!F60 -> 0 | G39: =P_Total!G60 -> 0 | H39: =P_Total!H60 -> 0 | I39: =P_Total!I60 -> 0 | J39: =P_Total!J60 -> 0
A40: 2 | B40: 3. | C40: Капиталови разходи | E40: =SUBTOTAL(9,E41:E45) -> 0 | F40: 0 | G40: 4702 | H40: 1551541 | I40: 0 | J40: 0
A41: 2 | C41: Основен ремонт на дълготрайни материални активи | D41: 51-00 | E41: =P_Total!E32+P_Total!E62 -> 0 | F41: =P_Total!F32+P_Total!F62 -> 0 | G41: =P_Total!G32+P_Total!G62 -> 4702 | H41: =P_Total!H32+P_Total!H62 -> 4702 | I41: =P_Total!I32+P_Total!I62 -> 0 | J41: =P_Total!J32+P_Total!J62 -> 0
A42: 2 | C42: Придобиване на дълготрайни материални активи | D42: 52-00 | E42: =P_Total!E33+P_Total!E63 -> 0 | F42: =P_Total!F33+P_Total!F63 -> 0 | G42: =P_Total!G33+P_Total!G63 -> 0 | H42: =P_Total!H33+P_Total!H63 -> 1546839 | I42: =P_Total!I33+P_Total!I63 -> 0 | J42: =P_Total!J33+P_Total!J63 -> 0
A43: 3 | C43: Придобиване на нематериални дълготрайни активи | D43: 53-00 | E43: =P_Total!E34+P_Total!E64 -> 0 | F43: =P_Total!F34+P_Total!F64 -> 0 | G43: =P_Total!G34+P_Total!G64 -> 0 | H43: =P_Total!H34+P_Total!H64 -> 0 | I43: =P_Total!I34+P_Total!I64 -> 0 | J43: =P_Total!J34+P_Total!J64 -> 0
A44: 3 | C44: Придобиване на земя | D44: 54-00 | E44: =P_Total!E35+P_Total!E65 -> 0 | F44: =P_Total!F35+P_Total!F65 -> 0 | G44: =P_Total!G35+P_Total!G65 -> 0 | H44: =P_Total!H35+P_Total!H65 -> 0 | I44: =P_Total!I35+P_Total!I65 -> 0 | J44: =P_Total!J35+P_Total!J65 -> 0
A45: 3 | C45: Капиталови трансфери | D45: 55-00 | E45: =P_Total!E36+P_Total!E66 -> 0 | F45: =P_Total!F36+P_Total!F66 -> 0 | G45: =P_Total!G36+P_Total!G66 -> 0 | H45: =P_Total!H36+P_Total!H66 -> 0 | I45: =P_Total!I36+P_Total!I66 -> 0 | J45: =P_Total!J36+P_Total!J66 -> 0
A46: 3 | B46: 4. | C46: Прираст на държавния резерв и изкупуване на земеделска продукция | E46: =SUBTOTAL(9,E47:E49) -> 0 | F46: 0 | G46: 0 | H46: 0 | I46: 0 | J46: 0
A47: 3 | C47: Плащания за попълване на държавния резерв | D47: 57-01 | E47: =P_Total!E68 -> 0 | F47: =P_Total!F68 -> 0 | G47: =P_Total!G68 -> 0 | H47: =P_Total!H68 -> 0 | I47: =P_Total!I68 -> 0 | J47: =P_Total!J68 -> 0
A48: 3 | C48: Постъпления от продажба на държавния резерв (-) | D48: 40-71 | E48: =P_Total!E69 -> 0 | F48: =P_Total!F69 -> 0 | G48: =P_Total!G69 -> 0 | H48: =P_Total!H69 -> 0 | I48: =P_Total!I69 -> 0 | J48: =P_Total!J69 -> 0
A49: 3 | C49: Плащания за изкупуване на земеделска продукция | D49: 57-02 | E49: =P_Total!E70 -> 0 | F49: =P_Total!F70 -> 0 | G49: =P_Total!G70 -> 0 | H49: =P_Total!H70 -> 0 | I49: =P_Total!I70 -> 0 | J49: =P_Total!J70 -> 0
A50: 3 | B50: 5. | C50: Резерв за непредвидени и неотложни разходи | D50: 00-98 | E50: =P_Total!E71 -> 0 | F50: =P_Total!F71 -> 0 | G50: =P_Total!G71 -> 0 | H50: =P_Total!H71 -> 0 | I50: =P_Total!I71 -> 0 | J50: =P_Total!J71 -> 0
A51: 1
A52: 1 | C52: НАТУРАЛНИ ПОКАЗАТЕЛИ
A53: =IF(MAX(E53:J53)=0,IF(MIN(E53:J53)=0,3,2),2) -> 2 | C53: Щатни бройки - общо | E53: =E55+E61 -> 0 | F53: 0 | G53: 216 | H53: 218 | I53: 0 | J53: 0
A54: 2 | C54: Средногодишни щатни бройки - общо | E54: =E58+E62 -> 0 | F54: 0 | G54: 214 | H54: 217 | I54: 0 | J54: 0
A55: 2 | C55: Щатни бройки | E55: =SUM(E56:E57) -> 0 | F55: 0 | G55: 216 | H55: 218 | I55: 0 | J55: 0
A56: 2 | C56: по трудови правоотношения | E56: =P_Total!E77 -> 0 | F56: =P_Total!F77 -> 0 | G56: =P_Total!G77 -> 20 | H56: =P_Total!H77 -> 19 | I56: =P_Total!I77 -> 0 | J56: =P_Total!J77 -> 0
A57: 2 | C57: по служебни правоотношения | E57: =P_Total!E78 -> 0 | F57: =P_Total!F78 -> 0 | G57: =P_Total!G78 -> 196 | H57: =P_Total!H78 -> 199 | I57: =P_Total!I78 -> 0 | J57: =P_Total!J78 -> 0
A58: 2 | C58: Средногодишни щатни бройки | E58: =SUM(E59:E60) -> 0 | F58: 0 | G58: 214 | H58: 217 | I58: 0 | J58: 0
A59: 2 | C59: по трудови правоотношения | E59: =P_Total!E80 -> 0 | F59: =P_Total!F80 -> 0 | G59: =P_Total!G80 -> 19 | H59: =P_Total!H80 -> 19 | I59: =P_Total!I80 -> 0 | J59: =P_Total!J80 -> 0
A60: 2 | C60: по служебни правоотношения | E60: =P_Total!E81 -> 0 | F60: =P_Total!F81 -> 0 | G60: =P_Total!G81 -> 195 | H60: =P_Total!H81 -> 198 | I60: =P_Total!I81 -> 0 | J60: =P_Total!J81 -> 0
A61: 3 | C61: Щатни бройки на делегирани бюджети | E61: =P_Total!E82 -> 0 | F61: =P_Total!F82 -> 0 | G61: =P_Total!G82 -> 0 | H61: =P_Total!H82 -> 0 | I61: =P_Total!I82 -> 0 | J61: =P_Total!J82 -> 0
A62: 3 | C62: Средногодишни щатни бройки на делегирани бюджети | E62: =P_Total!E83 -> 0 | F62: =P_Total!F83 -> 0 | G62: =P_Total!G83 -> 0 | H62: =P_Total!H83 -> 0 | I62: =P_Total!I83 -> 0 | J62: =P_Total!J83 -> 0
A63: 1

Sheet Klasif
B1: КЛАСИФИКАЦИЯ
B2: на областите на политики/функционалните области и бюджетните програми от компетентността и отговорността на съответния първостепенен разпоредител с бюджет, чийто бюджет се включва в държавния бюджет, с изключение на първостепенните разпоредители с бюджет по бюджетите на Народното събрание и на съдебната власт
B4: Код* | C4: Област на политика/Функционална област/Бюджетна програма
B6: 0200.00.00 | C6: АДМИНИСТРАЦИЯ НА ПРЕЗИДЕНТА
B7: 0200.01.00 | C7: Функционална област „Осъществяване на конституционните правомощия на президента на Република България“
B8: 0200.01.01 | C8: Бюджетна програма „Подпомагане и осигуряване дейността на президента и вицепрезидента на Република България при изпълнение на конституционните и законовите им правомощия“
B10: 0300.00.00 | C10: МИНИСТЕРСКИ СЪВЕТ
B11: 0300.01.00 | C11: Област „Осигуряване дейността и организацията на работата на Министерския съвет“
B12: 0300.01.01 | C12: Бюджетна програма „Министерски съвет и организация на дейността му“
B13: 0300.01.02 | C13: Бюджетна програма „Координация и мониторинг на хоризонтални политики“
B14: 0300.02.00 | C14: Политика в областта на управлението на средствата от ЕС
B15: 0300.02.01 | C15: Бюджетна програма „Координация при управление на средствата от ЕС“
B16: 0300.03.00 | C16: Политика в областта на осъществяването на държавните функции на територията на областите в България
B17: 0300.03.01 | C17: Бюджетна програма „Осъществяване на държавната политика на областно ниво“
B18: 0300.04.00 | C18: Политика в областта на правото на вероизповедание
B19: 0300.04.01 | C19: Бюджетна програма „Вероизповедания“
B20: 0300.05.00 | C20: Политика в областта на архивното дело
B21: 0300.05.01 | C21: Бюджетна програма „Национален архивен фонд“
B22: 0300.06.00 | C22: Бюджетна програма „Администрация“
B23: 0300.07.00 | C23: Други бюджетни програми
B24: 0300.07.01 | C24: Бюджетна програма „Други дейности и услуги“
B25: 0300.07.02 | C25: Бюджетна програма „Убежище и бежанци“
B27: 0400.00.00 | C27: КОНСТИТУЦИОНЕН СЪД
B28: 0400.01.00 | C28: Функционална област „Върховенство на Конституцията“
B29: 0400.01.01 | C29: Бюджетна програма „Тълкуване на Конституцията“
B31: 0500.00.00 | C31: СМЕТНА ПАЛАТА
B32: 0500.01.00 | C32: Функционална област „Контрол по изпълнението на бюджета и управлението на публичните средства и дейности“
B33: 0500.01.01 | C33: Бюджетна програма „Независим, ефективен и ефикасен одит, подпомагащ доброто управление и отчетността на публичните средства и дейности“
B35: 1000.00.00 | C35: МИНИСТЕРСТВО НА ФИНАНСИТЕ
B36: 1000.01.00 | C36: Политика в областта на устойчивите и прозрачни публични финанси
B37: 1000.01.01 | C37: Бюджетна програма „Бюджет и финансово управление“
B38: 1000.01.02 | C38: Бюджетна програма „Защита на публичните финансови интереси“
B39: 1000.02.00 | C39: Политика в областта на ефективното събиране на всички държавни приходи
B40: 1000.02.01 | C40: Бюджетна програма „Администриране на държавните приходи“
B41: 1000.03.00 | C41: Политика в областта на защитата на обществото и икономиката от финансови измами, контрабанда на стоки, изпиране на пари и финансиране на тероризма
B42: 1000.03.01 | C42: Бюджетна програма „Интегриране на финансовата система във финансовата система на ЕС“
B43: 1000.03.02 | C43: Бюджетна програма „Митнически контрол и надзор (нефискален)“
B44: 1000.04.00 | C44: Политика в областта на управлението на дълга
B45: 1000.04.01 | C45: Бюджетна програма „Управление на ликвидността“
B46: 1000.05.00 | C46: Други бюджетни програми
B47: 1000.05.01 | C47: Бюджетна програма „Национален компенсационен жилищен фонд“
B48: 1000.06.00 | C48: Бюджетна програма „Администрация“
B50: 1100.00.00 | C50: МИНИСТЕРСТВО НА ВЪНШНИТЕ РАБОТИ
B51: 1100.01.00 | C51: Политика в областта на активната двустранна и многостранна дипломация
B52: 1100.01.01 | C52: Бюджетна програма „Принос за формиране на политики на НАТО, обща външна политика и политика на сигурност на ЕС и участие на България в ОССЕ“
B53: 1100.01.02 | C53: Бюджетна програма „Европейска политика. Регионално и двустранно сътрудничество с държавите от ЮИЕ. Двустранни отношения с държавите-членки на ЕС, ЕИП, ЕАСТ и с Обединеното Кралство“
B54: 1100.01.03 | C54: Бюджетна програма „Многостранно сътрудничество и глобални политики“
B55: 1100.01.04 | C55: Бюджетна програма „Двустранни отношения с държави извън ЕС и ЕИП“
B56: 1100.01.05 | C56: Бюджетна програма „Консулска дипломация и управление на кризи“
B57: 1100.01.06 | C57: Бюджетна програма „Международно сътрудничество за развитие и хуманитарна помощ“
B58: 1100.01.07 | C58: Бюджетна програма „Изграждане на позитивен образ на България зад граница и подкрепа за българските общности, организации и инициативи на българите в чужбина“
B59: 1100.01.08 | C59: Бюджетна програма „Осигуряване на прозрачност и обществена подкрепа за външната политика“
B60: 1100.01.09 | C60: Бюджетна програма „Обучение и професионална квалификация на служителите в дипломатическата служба“
B61: 1100.01.10 | C61: Бюджетна програма „Ефективно функциониране на външнополитическата дейност“
B62: 1100.01.11 | C62: Бюджетна програма „Администриране и осигуряване на дейността на Централно управление на МВнР“
B63: 1100.01.12 | C63: Бюджетна програма „Администриране и осигуряване на дейността на задграничните представителства“
B64: 1100.02.00 | C64: Политика в областта на публичната дипломация и публичните дейности в подкрепа на целите на външната политика
B65: 1100.02.01 | C65: Бюджетна програма „Публична дипломация“
B66: 1100.02.02 | C66: Бюджетна програма „Културна дипломация“
B67: 1100.03.00 | C67: Политика в областта на подкрепата за българските общности и лицата с българско самосъзнание зад граница
B68: 1100.03.01 | C68: Бюджетна програма „Подкрепа за българските общности и лицата с българско самосъзнание зад граница; съхраняване на българското културно-историческо наследство“
B70: 1200.00.00 | C70: МИНИСТЕРСТВО НА ОТБРАНАТА
B71: 1200.01.00 | C71: Политика в областта на отбранителните способности
B72: 1200.01.01 | C72: Бюджетна програма „Подготовка и използване на въоръжените сили“
B73: 1200.01.02 | C73: Бюджетна програма „Управление на човешките ресурси и резерв“
B74: 1200.01.03 | C74: Бюджетна програма „Военна полиция“
B75: 1200.01.04 | C75: Бюджетна програма „Медицинско осигуряване“
B76: 1200.01.05 | C76: Бюджетна програма „Военно-патриотично възпитание и военно-почивно дело“
B77: 1200.01.06 | C77: Бюджетна програма „Изследвания и технологии“
B78: 1200.01.07 | C78: Бюджетна програма „Военно образование“
B79: 1200.01.08 | C79: Бюджетна програма „Административно осигуряване, инфраструктура и управление на риска“
B80: 1200.01.09 | C80: Бюджетна програма „Управление на инвестиционни проекти“
B81: 1200.02.00 | C81: Политика в областта на съюзната и международната сигурност
B82: 1200.02.01 | C82: Бюджетна програма „Членство в НАТО и ЕС и международно сътрудничество“
B83: 1200.02.02 | C83: Бюджетна програма „Военно разузнаване“
B85: 1300.00.00 | C85: МИНИСТЕРСТВО НА ВЪТРЕШНИТЕ РАБОТИ
B86: 1300.01.00 | C86: Политика в областта на противодействието на престъпността и опазването на обществения ред
B87: 1300.01.01 | C87: Бюджетна програма „Противодействие на престъпността, опазване на обществения ред и превенция“
B88: 1300.02.00 | C88: Политика в областта на защитата на границите и контрол на миграционните процеси
B89: 1300.02.01 | C89: Бюджетна програма „Граничен контрол, охрана на държавната граница, регулиране и контрол на миграционните процеси“
B90: 1300.03.00 | C90: Политика в областта на пожарната безопасност и защитата на населението при извънредни ситуации
B91: 1300.03.01 | C91: Бюджетна програма „Пожарна безопасност и защита на населението при пожари, бедствия и извънредни ситуации“
B92: 1300.04.00 | C92: Политика в областта на управлението и развитието на системата на Министерството на вътрешните работи
B93: 1300.04.01 | C93: Бюджетна програма „Информационно осигуряване и административно обслужване“
B94: 1300.04.02 | C94: Бюджетна програма „Медицинско обслужване“
B95: 1300.04.03 | C95: Бюджетна програма „Научни изследвания и разработки, обучение и квалификация“
B97: 1400.00.00 | C97: МИНИСТЕРСТВО НА ПРАВОСЪДИЕТО
B98: 1400.01.00 | C98: Политика в областта на правосъдието
B99: 1400.01.01 | C99: Бюджетна програма „Правна рамка за функционирането на съдебната система“
B100: 1400.01.02 | C100: Бюджетна програма „Регистри“
B101: 1400.01.03 | C101: Бюджетна програма „Охрана на съдебната власт“
B102: 1400.01.04 | C102: Бюджетна програма „Равен достъп до правосъдие“
B103: 1400.02.00 | C103: Политика в областта на изпълнение на наказанията
B104: 1400.02.01 | C104: Бюджетна програма „Затвори - изолация на правонарушителите“
B105: 1400.02.02 | C105: Бюджетна програма „Арести и пробация“
B106: 1400.03.00 | C106: Бюджетна програма „Администрация“
B108: 1500.00.00 | C108: МИНИСТЕРСТВО НА ТРУДА И СОЦИАЛНАТА ПОЛИТИКА
B109: 1500.01.00 | C109: Политика в областта на пазара на труда, свободното движение на работници и трудовата миграция
B110: 1500.01.01 | C110: Бюджетна програма „Активна политика на пазара на труда“
B111: 1500.01.02 | C111: Бюджетна програма „Свободно движение на работници и трудова миграция“
B112: 1500.02.00 | C112: Политика в областта на трудовите отношения
B113: 1500.02.01 | C113: Бюджетна програма „Осигуряване на подходящи условия на труд“
B114: 1500.03.00 | C114: Политика в областта на социалното подпомагане и равнопоставеността на жените и мъжете
B115: 1500.03.01 | C115: Бюджетна програма „Социални помощи“
B116: 1500.03.02 | C116: Бюджетна програма „Равнопоставеност на жените и мъжете“
B117: 1500.04.00 | C117: Политика в областта на хората с увреждания
B118: 1500.04.01 | C118: Бюджетна програма „Подкрепа на и за хората с увреждания“
B119: 1500.05.00 | C119: Политика в областта на социалното включване
B120: 1500.05.01 | C120: Бюджетна програма „Подкрепа за децата и семействата“
B121: 1500.06.00 | C121: Политика в областта на жизненото равнище, демографското развитие и социалните инвестиции
B122: 1500.06.01 | C122: Бюджетна програма „Насърчаване, координация и мониторинг на демографското развитие, жизненото равнище и доходите от труд“
B123: 1500.06.02 | C123: Бюджетна програма „Насърчаване, развитие и мониторинг на социалната икономика и корпоративната социална отговорност“
B124: 1500.07.00 | C124: Бюджетна програма „Администрация“
B126: 1600.00.00 | C126: МИНИСТЕРСТВО НА ЗДРАВЕОПАЗВАНЕТО
B127: 1600.01.00 | C127: Политика в областта на промоцията, превенцията и контрола на общественото здраве
B128: 1600.01.01 | C128: Бюджетна програма „Държавен здравен контрол“
B129: 1600.01.02 | C129: Бюджетна програма „Промоция и превенция на незаразните болести“
B130: 1600.01.03 | C130: Бюджетна програма „Профилактика и надзор на заразните болести“
B131: 1600.01.04 | C131: Бюджетна програма „Намаляване търсенето на наркотични вещества“
B132: 1600.02.00 | C132: Политика в областта на диагностиката и лечението
B133: 1600.02.01 | C133: Бюджетна програма „Контрол на медицинските дейности, здравна информация и електронно здравеопазване“
B134: 1600.02.02 | C134: Бюджетна програма „Осигуряване на медицинска помощ на специфични групи от населението“
B135: 1600.02.03 | C135: Бюджетна програма „Спешна медицинска помощ“
B136: 1600.02.04 | C136: Бюджетна програма „Психиатрична помощ“
B137: 1600.02.05 | C137: Бюджетна програма „Осигуряване на кръв и кръвни продукти“
B138: 1600.02.06 | C138: Бюджетна програма „Медико-социални грижи за деца в неравностойно положение, майчино и детско здравеопазване“
B139: 1600.03.00 | C139: Политика в областта на лекарствените продукти и медицинските изделия
B140: 1600.03.01 | C140: Бюджетна програма „Достъпни и качествени лекарствени продукти и медицински изделия“
B141: 1600.04.00 | C141: Бюджетна програма „Администрация“
B143: 1700.00.00 | C143: МИНИСТЕРСТВО НА ОБРАЗОВАНИЕТО И НАУКАТА
B144: 1700.01.00 | C144: Политика в областта на всеобхватното, достъпно и качествено предучилищно и училищно образование. Учене през целия живот
B145: 1700.01.01 | C145: Бюджетна програма „Осигуряване на качеството в системата на предучилищното и училищното образование“
B146: 1700.01.02 | C146: Бюджетна програма „Улесняване на достъпа до образование. Приобщаващо образование“
B147: 1700.01.03 | C147: Бюджетна програма „Училищно образование“
B148: 1700.01.04 | C148: Бюджетна програма „Развитие на способностите на децата и учениците“
B149: 1700.01.05 | C149: Бюджетна програма „Образование на българите в чужбина“
B150: 1700.01.06 | C150: Бюджетна програма „Учене през целия живот“
B151: 1700.02.00 | C151: Политика в областта на равен достъп до качествено висше образование и развитие на научния потенциал
B152: 1700.02.01 | C152: Бюджетна програма „Подобряване на достъпа и повишаване на качеството във висшето образование“
B153: 1700.02.02 | C153: Бюджетна програма „Студентско подпомагане“
B154: 1700.02.03 | C154: Бюджетна програма „Международен образователен обмен“
B155: 1700.02.04 | C155: Бюджетна програма „Оценка и развитие на националния научен потенциал за изграждане на устойчива връзка образование - наука - бизнес като основа за развитие на икономика, базирана на знанието“
B156: 1700.02.05 | C156: Бюджетна програма „Координация и мониторинг на научния потенциал за интегриране в европейското изследователско пространство и глобалната информационна мрежа“
B157: 1700.03.00 | C157: Бюджетна програма „Администрация“
B159: 1800.00.00 | C159: МИНИСТЕРСТВО НА КУЛТУРАТА
B160: 1800.01.00 | C160: Политика в областта на опазване на движимото и недвижимото културно наследство
B161: 1800.01.01 | C161: Бюджетна програма „Опазване на недвижимото културно наследство“
B162: 1800.01.02 | C162: Бюджетна програма „Опазване и представяне на движимото културно наследство и визуалните изкуства“
B163: 1800.02.00 | C163: Политика в областта на създаване и популяризиране на съвременно изкуство в страната и в чужбина и достъп до качествено художествено образование
B164: 1800.02.01 | C164: Бюджетна програма „Национален фонд „Култура“
B165: 1800.02.02 | C165: Бюджетна програма „Филмово изкуство“
B166: 1800.02.03 | C166: Бюджетна програма „Сценични изкуства“
B167: 1800.02.04 | C167: Бюджетна програма „Фестивали, конкурси, събития и чествания“
B168: 1800.02.05 | C168: Бюджетна програма „Авторско право и сродните му права“
B169: 1800.02.06 | C169: Бюджетна програма „Подпомагане развитието на българската култура и изкуства, на българския книжен сектор, библиотеки и читалища“
B170: 1800.02.07 | C170: Бюджетна програма „Популяризиране на българската култура в чужбина“
B171: 1800.02.08 | C171: Бюджетна програма „Обучение на кадри в областта на изкуството и културата“
B172: 1800.03.00 | C172: Бюджетна програма „Администрация“
B174: 1900.00.00 | C174: МИНИСТЕРСТВО НА ОКОЛНАТА СРЕДА И ВОДИТЕ
B175: 1900.01.00 | C175: Политика в областта на опазването и ползването на компонентите на околната среда
B176: 1900.01.01 | C176: Бюджетна програма „Оценка, управление и опазване на водите на Република България“
B177: 1900.01.02 | C177: Бюджетна програма „Интегрирана система за управление на отпадъците и опазване на почвите“
B178: 1900.01.03 | C178: Бюджетна програма „Намаляване на вредните емисии в атмосферата и подобряване качеството на атмосферния въздух“
B179: 1900.01.04 | C179: Бюджетна програма „Съхраняване, укрепване и възстановяване на екосистеми, местообитания, видове и генетичните им ресурси“
B180: 1900.01.05 | C180: Бюджетна програма „Информиране, участие на обществеността в процеса на вземане на решения и прилагане на механизмите за контрол“
B181: 1900.01.06 | C181: Бюджетна програма „Оценка и управление на въздействието върху околната среда“
B182: 1900.01.07 | C182: Бюджетна програма „Управление на дейностите по изменение на климата“
B183: 1900.02.00 | C183: Политика в областта на Националната система за мониторинг на околната среда и информационна обезпеченост
B184: 1900.02.01 | C184: Бюджетна програма „Национална система за мониторинг на околната среда и информационна обезпеченост“
B185: 1900.03.00 | C185: Други бюджетни програми
B186: 1900.03.01 | C186: Бюджетна програма „Дейности по метеорология, хидрология и агрометеорология“
B187: 1900.04.00 | C187: Бюджетна програма „Администрация“
B189: 2000.00.00 | C189: МИНИСТЕРСТВО НА ИКОНОМИКАТА И ИНДУСТРИЯТА
B190: 2000.01.00 | C190: Политика в областта на устойчивото икономическо развитие и конкурентоспособност
B191: 2000.01.01 | C191: Бюджетна програма „Облекчаване на регулации, опростяване на процедури по предоставяне на административни услуги“
B192: 2000.01.02 | C192: Бюджетна програма „Насърчаване на малките и средните предприятия и индустрията“
B193: 2000.01.03 | C193: Бюджетна програма „Закрила на обектите на индустриална собственост“
B194: 2000.01.04 | C194: Бюджетна програма „Инфраструктура по качеството в подкрепа развитието на икономиката“
B195: 2000.01.05 | C195: Бюджетна програма „Подобряване на възможностите за участие в единния европейски пазар“
B196: 2000.01.06 | C196: Бюджетна програма „Преструктуриране и ефективно управление на държавната собственост“
B197: 2000.01.07 | C197: Бюджетна програма „Защита на потребителите“
B198: 2000.02.00 | C198: Политика в областта на ефективното външноикономическо сътрудничество
B199: 2000.02.01 | C199: Бюджетна програма „Реализация на експортния потенциал и участие в търговската политика на Европейския съюз“
B200: 2000.03.00 | C200: Бюджетна програма „Администрация“
B202: 2100.00.00 | C202: МИНИСТЕРСТВО НА РЕГИОНАЛНОТО РАЗВИТИЕ И БЛАГОУСТРОЙСТВОТО
B203: 2100.01.00 | C203: Политика за интегрирано развитие на регионите за постигане на растеж и подобряване качеството на жизнената среда
B204: 2100.01.01 | C204: Бюджетна програма „Стратегическо планиране на регионалното и пространственото развитие, децентрализация и териториално сътрудничество“
B205: 2100.01.02 | C205: Бюджетна програма „Подобряване на жилищните условия на маргинализирани групи от населението“
B206: 2100.01.03 | C206: Бюджетна програма „Ефективно управление на държавната собственост, държавното участие в търговските дружества и държавни предприятия и развитие на публично-частното партньорство и концесионирането“
B207: 2100.02.00 | C207: Политика за подобряване на инвестиционния процес, поддържане, модернизация и изграждане на техническата инфраструктура
B208: 2100.02.01 | C208: Бюджетна програма „Рехабилитация и изграждане на пътна инфраструктура“
B209: 2100.02.02 | C209: Бюджетна програма „Устройство на територията, благоустройство, геозащита, водоснабдяване и канализация“
B210: 2100.02.03 | C210: Бюджетна програма „Нормативно регулиране и контрол на строителните продукти и инвестиционния процес в строителството“
B211: 2100.03.00 | C211: Бюджетна програма „Ефективна администрация и координация“
B213: 2200.00.00 | C213: МИНИСТЕРСТВО НА ЗЕМЕДЕЛИЕТО И ХРАНИТЕ
B214: 2200.01.00 | C214: Политика в областта на земеделието и селските райони
B215: 2200.01.01 | C215: Бюджетна програма „Земеделски земи“
B216: 2200.01.02 | C216: Бюджетна програма „Природни ресурси в селските райони“
B217: 2200.01.03 | C217: Бюджетна програма „Растениевъдство“
B218: 2200.01.04 | C218: Бюджетна програма „Хидромелиорации“
... 135 more rows

Sheet Inf (hidden)
A1: 2 | B1: 2 | C1: =SUM(C11:C40) -> 1
A2: Hide Rows
A3: All Rows
A6: Hide Columns
A7: All Columns
B11: P (1) | C11: 1
B12: P (2)
B13: P (3)
B14: P (4)
B15: P (5)
B16: P (6)
B17: P (7)
B18: P (8)
B19: P (9)
B20: P (10)
B21: P (11)
B22: P (12)
B23: P (13)
B24: P (14)
B25: P (15)
B26: P (16)
B27: P (17)
B28: P (18)
B29: P (19)
B30: P (20)
B31: P (21)
B32: P (22)
B33: P (23)
B34: P (24)
B35: P (25)
B36: P (26)
B37: P (27)
B38: P (28)
B39: P (29)
B40: P (30)

Sheet P (hidden)
A1: 1
A2: 1
A3: 1
A4: 1 | B4: Код … | C4: Бюджетна програма ................................................................................
A5: 1 | B5: Код … | C5: към Област на политика/функционална област ...................................
A6: 1
A7: 1
A8: 1 | C8: =IF(ISBLANK(P_Total!C8)," ",P_Total!C8) -> П О К А З А Т Е Л И | D8: =IF(ISBLANK(P_Total!D8)," ",P_Total!D8) ->  | E8: =IF(ISBLANK(P_Total!E8)," ",P_Total!E8) -> Закон | F8: =IF(ISBLANK(P_Total!F8)," ",P_Total!F8) -> Уточнен | G8: =IF(ISBLANK(P_Total!G8)," ",P_Total!G8) -> Отчет | H8: =IF(ISBLANK(P_Total!H8)," ",P_Total!H8) -> Отчет | I8: =IF(ISBLANK(P_Total!I8)," ",P_Total!I8) -> Отчет | J8: =IF(ISBLANK(P_Total!J8)," ",P_Total!J8) -> Отчет
A9: 1 | C9: =IF(ISBLANK(P_Total!C9)," ",P_Total!C9) ->  | D9: =IF(ISBLANK(P_Total!D9)," ",P_Total!D9) ->  | E9: =IF(ISBLANK(P_Total!E9)," ",P_Total!E9) ->  | F9: =IF(ISBLANK(P_Total!F9)," ",P_Total!F9) -> план | G9: =IF(ISBLANK(P_Total!G9)," ",P_Total!G9) -> към 31 март | H9: =IF(ISBLANK(P_Total!H9)," ",P_Total!H9) -> към 30 юни | I9: =IF(ISBLANK(P_Total!I9)," ",P_Total!I9) -> към 30 септември | J9: =IF(ISBLANK(P_Total!J9)," ",P_Total!J9) -> към 31 декември
A10: 1 | C10: =IF(ISBLANK(P_Total!C10)," ",P_Total!C10) -> (в евро) | D10: =IF(ISBLANK(P_Total!D10)," ",P_Total!D10) ->  | E10: =IF(ISBLANK(P_Total!E10)," ",P_Total!E10) -> 2026 г. | F10: =IF(ISBLANK(P_Total!F10)," ",P_Total!F10) -> 2026 г. | G10: =IF(ISBLANK(P_Total!G10)," ",P_Total!G10) -> 2026 г. | H10: =IF(ISBLANK(P_Total!H10)," ",P_Total!H10) -> 2026 г. | I10: =IF(ISBLANK(P_Total!I10)," ",P_Total!I10) -> 2026 г. | J10: =IF(ISBLANK(P_Total!J10)," ",P_Total!J10) -> 2026 г.
A11: 1 | C11: =IF(ISBLANK(P_Total!C11)," ",P_Total!C11) ->  | D11: =IF(ISBLANK(P_Total!D11)," ",P_Total!D11) ->  | E11: =IF(ISBLANK(P_Total!E11)," ",P_Total!E11) ->  | F11: =IF(ISBLANK(P_Total!F11)," ",P_Total!F11) ->  | G11: =IF(ISBLANK(P_Total!G11)," ",P_Total!G11) ->  | H11: =IF(ISBLANK(P_Total!H11)," ",P_Total!H11) ->  | I11: =IF(ISBLANK(P_Total!I11)," ",P_Total!I11) ->  | J11: =IF(ISBLANK(P_Total!J11)," ",P_Total!J11) -> 
A12: 1 | C12: =IF(ISBLANK(P_Total!C12)," ",P_Total!C12) -> A | D12: =IF(ISBLANK(P_Total!D12)," ",P_Total!D12) ->  | E12: =IF(ISBLANK(P_Total!E12)," ",P_Total!E12) -> 1 | F12: =IF(ISBLANK(P_Total!F12)," ",P_Total!F12) -> 2 | G12: =IF(ISBLANK(P_Total!G12)," ",P_Total!G12) -> 3 | H12: =IF(ISBLANK(P_Total!H12)," ",P_Total!H12) -> 4 | I12: =IF(ISBLANK(P_Total!I12)," ",P_Total!I12) -> 5 | J12: =IF(ISBLANK(P_Total!J12)," ",P_Total!J12) -> 6
A13: 1
A14: 1 | C14: РАЗХОДИ - ВСИЧКО | D14: 02 | E14: =E16 -> 0 | F14: 0 | G14: 0 | H14: 0 | I14: 0 | J14: 0
A15: 1
A16: 1 | C16: Общо разходи | E16: =SUBTOTAL(9,E17:E71) -> 0 | F16: 0 | G16: 0 | H16: 0 | I16: 0 | J16: 0
A17: 1 | B17: 1. | C17: Общо ведомствени разходи | E17: =SUBTOTAL(9,E18:E36) -> 0 | F17: 0 | G17: 0 | H17: 0 | I17: 0 | J17: 0
A18: =IF(MAX(E18:J18)=0,IF(MIN(E18:J18)=0,3,2),2) -> 3 | C18: Персонал | E18: =SUBTOTAL(9,E19:E22) -> 0 | F18: 0 | G18: 0 | H18: 0 | I18: 0 | J18: 0
A19: 3 | C19: Заплати и възнаграждения за персонала, нает по трудови и служебни правоотношения | D19: 01-00
A20: 3 | C20: Други възнаграждения и плащания за персонала | D20: 02-00
A21: 3 | C21: Задължителни осигурителни вноски от работодатели | D21: 05-00
A22: 3 | C22: Вноски за доброволно осигуряване | D22: 08-00
A23: 3 | C23: Издръжка | E23: =SUBTOTAL(9,E24:E30) -> 0 | F23: 0 | G23: 0 | H23: 0 | I23: 0 | J23: 0
A24: 3 | C24: Издръжка | D24: 10-00
A25: =IF(MAX(E25:J25)=0,IF(MIN(E25:J25)=0,3,2),2) -> 3 | C25: Платени данъци, такси и административни санкции | D25: 19-00
A26: 3 | C26: Лихви | E26: =SUBTOTAL(9,E27:E28) -> 0 | F26: 0 | G26: 0 | H26: 0 | I26: 0 | J26: 0
A27: 3 | C27: Лихви по външни заеми
A28: 3 | C28: Лихви по вътрешни заеми
A29: =IF(MAX(E29:J29)=0,IF(MIN(E29:J29)=0,3,2),2) -> 3 | C29: Текущи трансфери, обезщетения и помощи за домакинствата | D29: 42-00
A30: 3 | C30: Разходи за членски внос и участие в нетърговски организации и дейности | D30: 46-00
A31: 3 | C31: Капиталови разходи | E31: =SUBTOTAL(9,E32:E36) -> 0 | F31: 0 | G31: 0 | H31: 0 | I31: 0 | J31: 0
A32: 3 | C32: Основен ремонт на дълготрайни материални активи | D32: 51-00
A33: 3 | C33: Придобиване на дълготрайни материални активи | D33: 52-00
A34: 3 | C34: Придобиване на нематериални дълготрайни активи | D34: 53-00
A35: 3 | C35: Придобиване на земя | D35: 54-00
A36: 3 | C36: Капиталови трансфери | D36: 55-00
A37: 1 | B37: 2. | C37: Администрирани разходни параграфи по бюджета | E37: =SUBTOTAL(9,E38:E70) -> 0 | F37: 0 | G37: 0 | H37: 0 | I37: 0 | J37: 0
A38: =IF(MAX(E38:J38)=0,IF(MIN(E38:J38)=0,3,2),2) -> 3 | C38: Текущи разходи | E38: =SUBTOTAL(9,E39:E57) -> 0 | F38: 0 | G38: 0 | H38: 0 | I38: 0 | J38: 0
A39: 3 | C39: Персонал | E39: =SUBTOTAL(9,E40:E43) -> 0 | F39: 0 | G39: 0 | H39: 0 | I39: 0 | J39: 0
A40: =IF(MAX(E40:J40)=0,IF(MIN(E40:J40)=0,3,2),2) -> 3 | C40: Заплати и възнаграждения за персонала, нает по трудови и служебни правоотношения | D40: 01-00
A41: =IF(MAX(E41:J41)=0,IF(MIN(E41:J41)=0,3,2),2) -> 3 | C41: Други възнаграждения и плащания за персонала | D41: 02-00
A42: 3 | C42: Задължителни осигурителни вноски от работодатели | D42: 05-00
A43: 3 | C43: Вноски за доброволно осигуряване | D43: 08-00
A44: 3 | C44: Издръжка | D44: 10-00
A45: =IF(MAX(E45:J45)=0,IF(MIN(E45:J45)=0,3,2),2) -> 3 | C45: Платени данъци, такси и административни санкции | D45: 19-00
A46: 3 | C46: Лихви | E46: =SUBTOTAL(9,E47:E48) -> 0 | F46: 0 | G46: 0 | H46: 0 | I46: 0 | J46: 0
A47: 3 | C47: Лихви по външни заеми
A48: 3 | C48: Лихви по вътрешни заеми
A49: 3 | C49: Здравноосигурителни плащания | D49: 39-00
A50: 3 | C50: Стипендии | D50: 40-00
A51: 3 | C51: Пенсии | D51: 41-00
A52: 3 | C52: Текущи трансфери, обезщетения и помощи за домакинствата | D52: 42-00
A53: 3 | C53: Субсидии и други текущи трансфери за нефинансови предприятия | D53: 43-00
A54: 3 | C54: Субсидии и други текущи трансфери за осъществяване на болнична помощ | D54: 43-02
A55: =IF(MAX(E55:J55)=0,IF(MIN(E55:J55)=0,3,2),2) -> 3 | C55: Субсидии и други текущи трансфери за финансови институции | D55: 44-00
A56: 3 | C56: Субсидии и други текущи трансфери за юридически лица с нестопанска цел | D56: 45-00
A57: 3 | C57: Разходи за членски внос и участие в нетърговски организации и дейности | D57: 46-00
A58: 3 | C58: Предоставени текущи и капиталови трансфери за чужбина | D58: 49-00 | E58: =SUBTOTAL(9,E59:E60) -> 0 | F58: 0 | G58: 0 | H58: 0 | I58: 0 | J58: 0
A59: =IF(MAX(E59:J59)=0,IF(MIN(E59:J59)=0,3,2),2) -> 3 | C59: Текущи трансфери за чужбина | D59: 49-01
A60: 3 | C60: Капиталови трансфери за чужбина | D60: 49-02
A61: 3 | C61: Капиталови разходи | E61: =SUBTOTAL(9,E62:E66) -> 0 | F61: 0 | G61: 0 | H61: 0 | I61: 0 | J61: 0
A62: 3 | C62: Основен ремонт на дълготрайни материални активи | D62: 51-00
A63: 3 | C63: Придобиване на дълготрайни материални активи | D63: 52-00
A64: 3 | C64: Придобиване на нематериални дълготрайни активи | D64: 53-00
A65: 3 | C65: Придобиване на земя | D65: 54-00
A66: 3 | C66: Капиталови трансфери | D66: 55-00
A67: 3 | C67: Прираст на държавния резерв и изкупуване на земеделска продукция | E67: =SUBTOTAL(9,E68:E70) -> 0 | F67: 0 | G67: 0 | H67: 0 | I67: 0 | J67: 0
A68: 3 | C68: Плащания за попълване на държавния резерв | D68: 57-01
A69: 3 | C69: Постъпления от продажба на държавния резерв (-) | D69: 40-71
A70: 3 | C70: Плащания за изкупуване на земеделска продукция | D70: 57-02
A71: 3 | B71: 3. | C71: Резерв за непредвидени и неотложни разходи | D71: 00-98
A72: 1
A73: 1 | C73: НАТУРАЛНИ ПОКАЗАТЕЛИ
A74: =IF(MAX(E74:J74)=0,IF(MIN(E74:J74)=0,3,2),2) -> 3 | C74: Щатни бройки - общо | E74: =E76+E82 -> 0 | F74: 0 | G74: 0 | H74: 0 | I74: 0 | J74: 0
A75: 3 | C75: Средногодишни щатни бройки - общо | E75: =E79+E83 -> 0 | F75: 0 | G75: 0 | H75: 0 | I75: 0 | J75: 0
A76: 3 | C76: Щатни бройки | E76: =SUM(E77:E78) -> 0 | F76: 0 | G76: 0 | H76: 0 | I76: 0 | J76: 0
A77: 3 | C77: по трудови правоотношения
A78: 3 | C78: по служебни правоотношения
A79: 3 | C79: Средногодишни щатни бройки | E79: =SUM(E80:E81) -> 0 | F79: 0 | G79: 0 | H79: 0 | I79: 0 | J79: 0
A80: 3 | C80: по трудови правоотношения
A81: 3 | C81: по служебни правоотношения
A82: 3 | C82: Щатни бройки на делегирани бюджети
A83: 3 | C83: Средногодишни щатни бройки на делегирани бюджети
A84: 1
